{"text_format":"1","workbook":"xlsx","n_sheets":1,"sheets":["Загальний"],"not_rendered":{"charts":0,"images":0,"macros":1,"external_links":0,"defined_names":12,"comments":0,"pivot_tables":0},"unopened":[],"bounds":{"document_bytes":16777216,"sheet_cells":100000,"rows_first":2000,"rows_last":500,"rows_between":2000,"halvings":0,"cell_chars":16384,"cell_head_chars":4096},"cells_cut":0,"cells_raw":0,"read":"whole","date_system":"1900"}

{"sheet":"Загальний","index":0,"n_rows":610,"n_cols":93,"rows_kept":610,"cut":false,"hidden":false,"merged":[[18,12,20,12],[18,13,21,13],[18,14,21,14],[18,15,20,15],[18,16,20,16],[16,9,16,10],[16,12,16,13],[18,0,21,0],[18,1,21,1],[18,2,21,2],[18,3,21,3],[18,4,20,6],[18,7,20,9],[18,10,20,10],[18,11,20,11]]}
[null,null,null,null,null,null,null,null,null,null,null,null,null,null,null,null,null,null,null,null,null,null,null,null,null,null,null,null,null,null,null,null,null,null,null,null,null,null,null,null,null,null,null,null,null,null,null,null,null,null,null,null,null,null,null,null,null,null,null,1,1,"Вагон \"Офіс\""]
[null,null,null,null,null,null,null,null,null,null,null,null,null,null,null,null,null,null,null,null,null,null,null,null,null,null,null,null,null,null,null,null,null,null,null,null,null,null,null,null,null,null,null,null,null,null,null,null,null,null,null,null,null,null,null,null,null,null,null,2,2,"Вагон \"Лабораторія\""]
[null,null,null,null,null,null,null,null,null,null,null,null,null,null,null,null,null,null,null,null,null,null,null,null,null,null,null,null,null,null,null,null,null,null,null,null,null,null,null,null,null,null,null,null,null,null,null,null,null,null,null,null,null,null,null,null,null,null,null,3,3,1]
[null,null,null,null,null,null,null,null,null,null,null,null,null,null,null,null,null,null,null,null,null,null,null,null,null,null,null,null,null,null,null,null,null,null,null,null,null,null,null,null,null,null,null,null,null,null,null,null,null,null,null,null,null,null,null,null,null,null,null,4,4,2]
[null,null,null,null,null,null,null,null,null,null,null,null,null,null,null,null,null,null,null,null,null,null,null,null,null,null,null,null,null,null,null,null,null,null,null,null,null,null,null,null,null,null,null,null,null,null,null,null,null,null,null,null,null,null,null,null,null,null,null,5,5,3]
[null,null,null,null,null,null,null,null,null,null,null,null,null,null,null,null,null,null,null,null,null,null,null,null,null,null,null,null,null,null,null,null,null,null,null,null,null,null,null,null,null,null,null,null,null,null,null,null,null,null,null,null,null,null,null,null,null,null,null,6,6]
[null,null,null,null,null,null,null,null,null,null,null,null,null,null,null,null,null,null,null,null,null,null,null,null,null,null,null,null,null,null,null,null,null,null,null,null,null,null,null,null,null,null,null,null,null,null,null,null,null,null,null,null,null,null,null,null,null,null,null,"Гамма","дат выбрації"]
[]
[]
[]
[]
[]
[]
[]
[]
[]
[]
[1,2,3,4,5,6,7,8,9,10,11,12,13,14,15,16,17,18,19,20,21,22,23,24,25,26,27,28,29,30,31,32,33,34,35,36,37,38,39,40,41,42,43,44,45,46,47,48,49]
["№","Свердловина","ст.Телеметрист ","Вид свердловини","Початок експлуатації приладу",null,null,"Кінець експлуатації приладу",null,null,"Час експлуатації, год","Час циркуляції, год","Інтервал роботи, м","Відмітка про проведення ремонту","Примітки(дата, вид роботи)","Циркуляція","Час нижче ротора","Пульсатор","Пульсатор","Пульсатор","Інклінометр","Інклінометр","НОБТ203","НОБТ 203","НОБТ 203","НОБТ 171,5","НОБТ 171,5","НОБТ 171,5","НОБТ 120/127","НОБТ 120/127","НОБТ 120/127","UBHO 203","UBHO 203","UBHO 171,5","UBHO 171,5","UBHO 120/127","UBHO 120/127","Датчик тиску","Датчик тиску","BAT","BAT","BAT","BAT","Гама датчик","Гама датчик","Датчик вібрації","Датчик вібрації","Вагон","Телеметрична система"]
[]
[]
[null,null,null,null,"Дата","Час, год","Глибина, м","Дата","Час, год","Глибина, м",{"$f":"SUM(K23:K96)","v":{"$error":"#VALUE!"}},{"$f":"IF(SUM(L23:L96)>0,SUM(L23:L96),0)","v":222.69305555555559},{"$f":"SUM(M23:M96)","v":{"$error":"#VALUE!"}},null,null,{"$f":"SUM(P23:P96)","v":222.69305555555559},{"$f":"SUM(Q23:Q96)","v":341.0694444444444},null,null,null,null,null,null,null,null,null,null,null,null,null,null,null,null,null,null,null,null,null,null,null,null,null,null,null,null,null,null,null,null,null,null,null,null,null,null,null,null,null,null,null,null,null,null,null,null,null,null,null,null,null,null,null,null,null,null,null,null,null,null,"Пульсатори","Інклім","НОБТ 203","НОБТ 171,5","нобт120/127","UBHO 171?5","UBHO 203 ",127,"Датчики тиску","BAT","Гамма","Датчик вібрації","Вагони","Телеметрична система"]
[{"$f":"IF(B23=\"\",\"\",IF(MOD(ROW(A19),1),\"\",COUNT(A$4:A22)+1))","v":2},"1","К","Турбінний/Розвiдка","2","3","4","","","",{"$f":"IF(H23>0,(H23+I23)-(E23+F23),\" \")","v":{"$error":"#VALUE!"}},"",{"$f":"IF(J23>0,J23-G23,0)","v":{"$error":"#VALUE!"}},null,null,{"$f":"IF(L23>0,L23,0)","v":""},"","Пульсатор 1","Пульсатор P2","Пульсатор P2","Інклінометр E2749","Інклінометр E2749","NMDC 201904069","NMDC 201904053","NMDC 201904067","NMDC 201904043","NMDC 201904050","NMDC 201904043","NMDC 201904055","NMDC 201904055","NMDC 201904047","UBHO 201904037","","UBHO 201904013","","UBHO 201904023","","P221","P221","1016004","1016008","1016008","1016012","4","4","5","","Вагон \"Лабораторія\"","ін.№ 431620000187",null,null,null,null,null,null,null,null,null,null,null,null,null,null,null,null,null,null,null,null,null,null,null,null,null,null,null,null,"К","Турбінний/Розвiдка","Пульсатор 1","Інклінометр E2669","NMDC 203001","NMDC 1338","NMDC 127001","UBHO 669","UBHO 800228","UBHO 120127","PT01",1016009,1,1,"Вагон \"Офіс\"","ін.№ 431620000187"]
[{"$f":"IF(B24=\"\",\"\",IF(MOD(ROW(A20),1),\"\",COUNT(A$4:A23)+1))","v":""},null,null,null,null,null,null,null,null,null,{"$f":"IF(H24>0,(H24+I24)-(E24+F24),\" \")","v":" "},3.6388888888888888,0,"Сервіс","Порушення цілісності мембрани сервоклапана, выкревлений вал сервоклапана",3.6388888888888888,7.6875,null,null,null,null,null,null,null,null,null,null,null,null,null,null,null,null,null,null,null,null,null,null,null,null,null,null,null,null,null,null,null,null,null,null,null,null,null,null,null,null,null,null,null,null,null,null,null,null,null,null,null,null,null,null,null,null,null,null,null,null,"Е","Турбінне/Експлуатацiя","Пульсатор 2","Інклінометр E2142","NMDC 203002","NMDC 1339","NMDC 127002","UBHO OS03","UBHO 800229","UBHO 004","PT02",1016011,2,2,"Вагон \"Лабораторія\"","ін.№ 431620000189"]
[{"$f":"IF(B25=\"\",\"\",IF(MOD(ROW(A21),1),\"\",COUNT(A$4:A24)+1))","v":""},null,null,null,null,null,null,null,null,null,{"$f":"IF(H25>0,(H25+I25)-(E25+F25),\" \")","v":" "},1.84375,0,null,null,1.84375,3.1805555555555554,null,null,null,null,null,null,null,null,null,null,null,null,null,null,null,null,null,null,null,null,null,null,null,null,null,null,null,null,null,null,null,null,null,null,null,null,null,null,null,null,null,null,null,null,null,null,null,null,null,null,null,null,null,null,null,null,null,null,null,null,"Н",null,"Пульсатор ","Інклінометр E2745","NMDC 203003","NMDC 1341","NMDC 127003","Резерв","UBHO 001","UBHO РЕЗЕРВ ЯЧЕЙКА","PT03",1016004,3,3]
[{"$f":"IF(B26=\"\",\"\",IF(MOD(ROW(A22),1),\"\",COUNT(A$4:A25)+1))","v":""},null,null,null,null,null,null,null,null,null,{"$f":"IF(H26>0,(H26+I26)-(E26+F26),\" \")","v":" "},3.1041666666666665,0,null,null,3.1041666666666665,5.395833333333333,null,null,null,null,null,null,null,null,null,null,null,null,null,null,null,null,null,null,null,null,null,null,null,null,null,null,null,null,null,null,null,null,null,null,null,null,null,null,null,null,null,null,null,null,null,null,null,null,null,null,null,null,null,null,null,null,null,null,null,null,"Г",null,"Пульсатор ","Інклінометр E2749","NMDC 201904067","NMDC 201904042","NMDC 201904057","UBHO 003","UBHO 002","UBHO005","P222",1016008,4,4]
[{"$f":"IF(B27=\"\",\"\",IF(MOD(ROW(A23),1),\"\",COUNT(A$4:A26)+1))","v":""},null,null,null,null,null,null,null,null,null,{"$f":"IF(H27>0,(H27+I27)-(E27+F27),\" \")","v":" "},10.897916666666667,0,null,null,10.897916666666667,17.229166666666668,null,null,null,null,null,null,null,null,null,null,null,null,null,null,null,null,null,null,null,null,null,null,null,null,null,null,null,null,null,null,null,null,null,null,null,null,null,null,null,null,null,null,null,null,null,null,null,null,null,null,null,null,null,null,null,null,null,null,null,null,null,null,"Пульсатор P2","Інклінометр E8845","NMDC 201904053","NMDC 201904050","NMDC 201904048","UBHO 201904015","UBHO 201904036","UBHO 201904029","P221",1016012,5,5]
[{"$f":"IF(B28=\"\",\"\",IF(MOD(ROW(A24),1),\"\",COUNT(A$4:A27)+1))","v":""},null,null,null,null,null,null,null,null,null,{"$f":"IF(H28>0,(H28+I28)-(E28+F28),\" \")","v":" "},11.78125,0,null,null,11.78125,22.243055555555557,null,null,null,null,null,null,null,null,null,null,null,null,null,null,null,null,null,null,null,null,null,null,null,null,null,null,null,null,null,null,null,null,null,null,null,null,null,null,null,null,null,null,null,null,null,null,null,null,null,null,null,null,null,null,null,null,null,null,null,null,null,null,null,"Інклінометр E1637","NMDC 201904069","NMDC 201904043","NMDC 201904055","UBHO 201904014","UBHO 201904037","UBHO 201904023","P220",1016007,6,6]
[{"$f":"IF(B29=\"\",\"\",IF(MOD(ROW(A25),1),\"\",COUNT(A$4:A28)+1))","v":""},null,null,null,null,null,null,null,null,null," ",5.2791666666666668,0,null,null,5.2791666666666668,null,null,null,null,null,null,null,null,null,null,null,null,null,null,null,null,null,null,null,null,null,null,null,null,null,null,null,null,null,null,null,null,null,null,null,null,null,null,null,null,null,null,null,null,null,null,null,null,null,null,null,null,null,null,null,null,null,null,null,null,null,null,null,"Пульсатор P3","Інклінометр 1","NMDC 201904068","NMDC 201904045","NMDC 201904047","UBHO 201904013","UBHO 201904033","UBHO 201904021",1,1016001]
[{"$f":"IF(B30=\"\",\"\",IF(MOD(ROW(A26),1),\"\",COUNT(A$4:A29)+1))","v":""},null,null,null,null,null,null,null,null,null," ",4.7638888888888884,0,null,null,4.7638888888888884,9.125,null,null,null,null,null,null,null,null,null,null,null,null,null,null,null,null,null,null,null,null,null,null,null,null,null,null,null,null,null,null,null,null,null,null,null,null,null,null,null,null,null,null,null,null,null,null,null,null,null,null,null,null,null,null,null,null,null,null,null,null,null,null,"Пульсатор PUK1","Інклінометр 2","NMDC 201904070","NMDC 201904060","NMDC 201904081","UBHO 201904018","UBHO 201904031","UBHO 201904026",2,1016005]
[{"$f":"IF(B31=\"\",\"\",IF(MOD(ROW(A27),1),\"\",COUNT(A$4:A30)+1))","v":""},null,null,null,null,null,null,null,null,null," ",5.770833333333333,0,null,null,5.770833333333333,8.0833333333333339,null,null,null,null,null,null,null,null,null,null,null,null,null,null,null,null,null,null,null,null,null,null,null,null,null,null,null,null,null,null,null,null,null,null,null,null,null,null,null,null,null,null,null,null,null,null,null,null,null,null,null,null,null,null,null,null,null,null,null,null,null,null,"Пульсатор PUK4","Інклінометр 3","NMDC 201904052","NMDC 201904046","NMDC 201904056","UBHO 201904019","UBHO 201904034","UBHO 201904022",3,1009544]
[{"$f":"IF(B32=\"\",\"\",IF(MOD(ROW(A28),1),\"\",COUNT(A$4:A31)+1))","v":""},null,null,null,null,null,null,null,null,null," ",6.6486111111111112,0,null,null,6.6486111111111112,9.8958333333333339,null,null,null,null,null,null,null,null,null,null,null,null,null,null,null,null,null,null,null,null,null,null,null,null,null,null,null,null,null,null,null,null,null,null,null,null,null,null,null,null,null,null,null,null,null,null,null,null,null,null,null,null,null,null,null,null,null,null,null,null,null,null,"Пульсатор P4","Інклінометр 4","NMDC 201904097","NMDC 201904044","NMDC 201904058","UBHO 201904012","UBHO 201904030","UBHO 201904028",4,1016010]
[{"$f":"IF(B33=\"\",\"\",IF(MOD(ROW(A29),1),\"\",COUNT(A$4:A32)+1))","v":""},null,null,null,null,null,null,null,null,null," ",8.7430555555555554,0,"Сервіс","Проводили сервіс, замінили полипак смолл, ризинки в незадовільному стані, а саме, якісь дубові, тим самим вони пропустили невелику кількість бруду, на роботу пульсатора це ніяким чином не вплинуло. Сервіс провили при напрацюванні 450:52 годни циркуляції",8.7430555555555554,15.076388888888888,null,null,null,null,null,null,null,null,null,null,null,null,null,null,null,null,null,null,null,null,null,null,null,null,null,null,null,null,null,null,null,null,"Турбінний/Розвiдка",null,"Дунець В.С.",null,null,null,null,null,null,null,null,null,null,null,null,null,null,null,null,null,null,null,null,null,null,null,null,null,null,null,"Пульсатор PUK 2","Інклінометр 5","NMDC 201904099","NMDC 201904059","NMDC 201904082","UBHO 201904027","UBHO 201904038","UBHO 201904027",5,1016002]
[{"$f":"IF(B34=\"\",\"\",IF(MOD(ROW(A30),1),\"\",COUNT(A$4:A33)+1))","v":""},null,null,null,null,null,null,null,null,null," ",2.3784722222222223,0,null,null,2.3784722222222223,null,null,null,null,null,null,null,null,null,null,null,null,null,null,null,null,null,null,null,null,null,null,null,null,null,null,null,null,null,null,null,null,null,"Турбінне/Експлуатацiя",null,"Сорокін Р.О.",null,null,null,null,null,null,null,null,null,null,null,null,null,null,null,null,null,null,null,null,null,null,null,null,null,null,null,"Пульсатор PUK 5","Інклінометр 6","NMDC 201904098","NMDC 201904083","NMDC 201904092","UBHO 201904020","UBHO 201904032","UBHO 201904024",6,1016016]
[{"$f":"IF(B35=\"\",\"\",IF(MOD(ROW(A31),1),\"\",COUNT(A$4:A34)+1))","v":""},null,null,null,null,null,null,null,null,null," ",3.223611111111111,0,null,null,3.223611111111111,10.1875,null,null,null,null,null,null,null,null,null,null,null,null,null,null,null,null,null,null,null,null,null,null,null,null,null,null,null,null,null,null,null,null,null,null,"Сорокін Р.О./Дунець В.С.",null,null,null,null,null,null,null,null,null,null,null,null,null,null,null,null,null,null,null,null,null,null,null,null,null,null,null,1,"Інклінометр 7","NMDC 201904100","NMDC 201904085","NMDC 201904090","UBHO 201904026","UBHO 201904035","UBHO 201904025",7,1033551]
[{"$f":"IF(B36=\"\",\"\",IF(MOD(ROW(A32),1),\"\",COUNT(A$4:A35)+1))","v":""},null,null,null,null,null,null,null,null,null," ",8.3125,0,null,null,8.3125,15.6875,null,null,null,null,null,null,null,null,null,null,null,null,null,null,null,null,null,null,null,null,null,null,null,null,null,null,null,null,null,null,null,null,null,null,"Дунець В.С./Сорокін Р.О.",null,null,null,null,null,null,null,null,null,null,null,null,null,null,null,null,null,null,null,null,null,null,null,null,null,null,null,2,"Інклінометр 8","NMDC 201904101","NMDC 201904084","NMDC 201904091",null,null,null,8,1033550]
[{"$f":"IF(B37=\"\",\"\",IF(MOD(ROW(A33),1),\"\",COUNT(A$4:A36)+1))","v":""},null,null,null,null,null,null,null,null,null," ",5.0659722222222223,0,null,null,5.0659722222222223,8.5416666666666661,null,null,null,null,null,null,null,null,null,null,null,null,null,null,null,null,null,null,null,null,null,null,null,null,null,null,null,null,null,null,null,null,null,null,null,null,null,null,null,null,null,null,null,null,null,null,null,null,null,null,null,null,null,null,null,null,null,null,null,null,null,null,3,"Інклінометр 9","NMDC 201904093","NMDC 201904094","NMDC 201904095",null,null,null,9,1033546]
[{"$f":"IF(B38=\"\",\"\",IF(MOD(ROW(A34),1),\"\",COUNT(A$4:A37)+1))","v":""},null,null,null,null,null,null,null,null,null," ",2.7368055555555557,0,null,null,2.7368055555555557,4.791666666666667,null,null,null,null,null,null,null,null,null,null,null,null,null,null,null,null,null,null,null,null,null,null,null,null,null,null,null,null,null,null,null,null,null,null,null,null,null,null,null,null,null,null,null,null,null,null,null,null,null,null,null,null,null,null,null,null,null,null,null,null,null,null,4,null,null,null,null,null,null,null,10,1033548]
[{"$f":"IF(B39=\"\",\"\",IF(MOD(ROW(A35),1),\"\",COUNT(A$4:A38)+1))","v":""},null,null,null,null,null,null,null,null,null," ",7.541666666666667,0,null,null,7.541666666666667,10.736111111111112,null,null,null,null,null,null,null,null,null,null,null,null,null,null,null,null,null,null,null,null,null,null,null,null,null,null,null,null,null,null,null,null,null,null,null,null,null,null,null,null,null,null,null,null,null,null,null,null,null,null,null,null,null,null,null,null,null,null,null,null,null,null,5,null,null,null,null,null,null,null,11,1033547]
[{"$f":"IF(B40=\"\",\"\",IF(MOD(ROW(A36),1),\"\",COUNT(A$4:A39)+1))","v":""},null,null,null,null,null,null,null,null,null," ",3.9583333333333335,0,null,null,3.9583333333333335,4.9444444444444446,null,null,null,null,null,null,null,null,null,null,null,null,null,null,null,null,null,null,null,null,null,null,null,null,null,null,null,null,null,null,null,null,null,null,null,null,null,null,null,null,null,null,null,null,null,null,null,null,null,null,null,null,null,null,null,null,null,null,null,null,null,null,6,null,null,null,null,null,null,null,12,1033549]
[{"$f":"IF(B41=\"\",\"\",IF(MOD(ROW(A37),1),\"\",COUNT(A$4:A40)+1))","v":""},null,null,null,null,null,null,null,null,null," ",7.3680555555555562,0,null,null,7.3680555555555562,10.326388888888889,null,null,null,null,null,null,null,null,null,null,null,null,null,null,null,null,null,null,null,null,null,null,null,null,null,null,null,null,null,null,null,null,null,null,null,null,null,null,null,null,null,null,null,null,null,null,null,null,null,null,null,null,null,null,null,null,null,null,null,null,null,null,7,null,null,null,null,null,null,null,"Дат тиск",1033113]
[{"$f":"IF(B42=\"\",\"\",IF(MOD(ROW(A38),1),\"\",COUNT(A$4:A41)+1))","v":""},null,null,null,null,null,null,null,null,null," ",5.4375,{"$f":"IF(J42>0,J42-G42,0)","v":0},null,null,{"$f":"IF(L42>0,L42,0)","v":5.4375},8.8680555555555554,null,null,null,null,null,null,null,null,null,null,null,null,null,null,null,null,null,null,null,null,null,null,null,null,null,null,null,null,null,null,null,null,null,null,null,null,null,null,null,null,null,null,null,null,null,null,null,null,null,null,null,null,null,null,null,null,null,null,null,null,null,null,8,null,null,null,null,null,null,null,null,1033114]
[{"$f":"IF(B43=\"\",\"\",IF(MOD(ROW(A39),1),\"\",COUNT(A$4:A42)+1))","v":""},null,null,null,null,null,null,null,null,null," ",1.325,{"$f":"IF(J43>0,J43-G43,0)","v":0},null,null,{"$f":"IF(L43>0,L43,0)","v":1.325},3.2916666666666665,null,null,null,null,null,null,null,null,null,null,null,null,null,null,null,null,null,null,null,null,null,null,null,null,null,null,null,null,null,null,null,null,null,null,null,null,null,null,null,null,null,null,null,null,null,null,null,null,null,null,null,null,null,null,null,null,null,null,null,null,null,null,9,null,null,null,null,null,null,null,null,1033115]
[{"$f":"IF(B44=\"\",\"\",IF(MOD(ROW(A40),1),\"\",COUNT(A$4:A43)+1))","v":""},null,null,null,null,null,null,null,null,null," ",16.37638888888889,0,null,null,16.37638888888889,23.673611111111111,null,null,null,null,null,null,null,null,null,null,null,null,null,null,null,null,null,null,null,null,null,null,null,null,null,null,null,null,null,null,null,null,null,null,null,null,null,null,null,null,null,null,null,null,null,null,null,null,null,null,null,null,null,null,null,null,null,null,null,null,null,null,10,null,null,null,null,null,null,null,null,1016009]
[{"$f":"IF(B45=\"\",\"\",IF(MOD(ROW(A41),1),\"\",COUNT(A$4:A44)+1))","v":""},null,null,null,null,null,null,null,null,null," ",7.90625,0,null,null,7.90625,9.1458333333333339,null,null,null,null,null,null,null,null,null,null,null,null,null,null,null,null,null,null,null,null,null,null,null,null,null,null,null,null,null,null,null,null,null,null,null,null,null,null,null,null,null,null,null,null,null,null,null,null,null,null,null,null,null,null,null,null,null,null,null,null,null,null,11,null,null,null,null,null,null,null,null,1016011]
[{"$f":"IF(B46=\"\",\"\",IF(MOD(ROW(A42),1),\"\",COUNT(A$4:A45)+1))","v":""},null,null,null,null,null,null,null,null,null," ",9.3333333333333339,0,null,null,9.3333333333333339,13.694444444444445,null,null,null,null,null,null,null,null,null,null,null,null,null,null,null,null,null,null,null,null,null,null,null,null,null,null,null,null,null,null,null,null,null,null,null,null,null,null,null,null,null,null,null,null,null,null,null,null,null,null,null,null,null,null,null,null,null,null,null,null,null,null,null,null,null,null,null,null,null,null,null,1016004]
[{"$f":"IF(B47=\"\",\"\",IF(MOD(ROW(A43),1),\"\",COUNT(A$4:A46)+1))","v":""},null,null,null,null,null,null,null,null,null," ",15.5,0,null,null,15.5,16.100694444444446,null,null,null,null,null,null,null,null,null,null,null,null,null,null,null,null,null,null,null,null,null,null,null,null,null,null,null,null,null,null,null,null,null,null,null,null,null,null,null,null,null,null,null,null,null,null,null,null,null,null,null,null,null,null,null,null,null,null,null,null,null,null,null,null,null,null,null,null,null,null,null,1016008]
[{"$f":"IF(B48=\"\",\"\",IF(MOD(ROW(A44),1),\"\",COUNT(A$4:A47)+1))","v":""},null,null,null,null,null,null,null,null,null," ",8.3618055555555557,0,null,null,8.3618055555555557,11.791666666666666,null,null,null,null,null,null,null,null,null,null,null,null,null,null,null,null,null,null,null,null,null,null,null,null,null,null,null,null,null,null,null,null,null,null,null,null,null,null,null,null,null,null,null,null,null,null,null,null,null,null,null,null,null,null,null,null,null,null,null,null,null,null,null,null,null,null,null,null,null,null,null,1016012]
[{"$f":"IF(B49=\"\",\"\",IF(MOD(ROW(A45),1),\"\",COUNT(A$4:A48)+1))","v":""},null,null,null,null,null,null,null,null,null," ",7.5381944444444438,0,null,null,7.5381944444444438,13.53125,null,null,null,null,null,null,null,null,null,null,null,null,null,null,null,null,null,null,null,null,null,null,null,null,null,null,null,null,null,null,null,null,null,null,null,null,null,null,null,null,null,null,null,null,null,null,null,null,null,null,null,null,null,null,null,null,null,null,null,null,null,null,null,null,null,null,null,null,null,null,null,1016007]
[{"$f":"IF(B50=\"\",\"\",IF(MOD(ROW(A46),1),\"\",COUNT(A$4:A49)+1))","v":""},null,null,null,null,null,null,null,null,null," ",13.010416666666666,0,null,null,13.010416666666666,20.527777777777779,null,null,null,null,null,null,null,null,null,null,null,null,null,null,null,null,null,null,null,null,null,null,null,null,null,null,null,null,null,null,null,null,null,null,null,null,null,null,null,null,null,null,null,null,null,null,null,null,null,null,null,null,null,null,null,null,null,null,null,null,null,null,null,null,null,null,null,null,null,null,null,1016001]
[{"$f":"IF(B51=\"\",\"\",IF(MOD(ROW(A47),1),\"\",COUNT(A$4:A50)+1))","v":""},null,null,null,null,null,null,null,null,null," ",9.09375,0,null,null,9.09375,13.208333333333334,null,null,null,null,null,null,null,null,null,null,null,null,null,null,null,null,null,null,null,null,null,null,null,null,null,null,null,null,null,null,null,null,null,null,null,null,null,null,null,null,null,null,null,null,null,null,null,null,null,null,null,null,null,null,null,null,null,null,null,null,null,null,null,null,null,null,null,null,null,null,null,1016005]
[{"$f":"IF(B52=\"\",\"\",IF(MOD(ROW(A48),1),\"\",COUNT(A$4:A51)+1))","v":""},null,null,null,null,null,null,null,null,null," ",8.4756944444444446,0,null,null,8.4756944444444446,11.645833333333334,null,null,null,null,null,null,null,null,null,null,null,null,null,null,null,null,null,null,null,null,null,null,null,null,null,null,null,null,null,null,null,null,null,null,null,null,null,null,null,null,null,null,null,null,null,null,null,null,null,null,null,null,null,null,null,null,null,null,null,null,null,null,null,null,null,null,null,null,null,null,null,1009544]
[{"$f":"IF(B53=\"\",\"\",IF(MOD(ROW(A49),1),\"\",COUNT(A$4:A52)+1))","v":""},null,null,null,null,null,null,null,null,null," ",12.652777777777779,{"$f":"IF(J53>0,J53-G53,\"\")","v":""},null,null,12.652777777777779,25.166666666666668,null,null,null,null,null,null,null,null,null,null,null,null,null,null,null,null,null,null,null,null,null,null,null,null,null,null,null,null,null,null,null,null,null,null,null,null,null,null,null,null,null,null,null,null,null,null,null,null,null,null,null,null,null,null,null,null,null,null,null,null,null,null,null,null,null,null,null,null,null,null,null,1016010]
[{"$f":"IF(B54=\"\",\"\",IF(MOD(ROW(A50),1),\"\",COUNT(A$4:A53)+1))","v":""},null,null,null,null,null,null,null,null,null," ",4.625,{"$f":"IF(J54>0,J54-G54,0)","v":0},null,null,{"$f":"IF(L54>0,L54,0)","v":4.625},7.291666666666667,null,null,null,null,null,null,null,null,null,null,null,null,null,null,null,null,null,null,null,null,null,null,null,null,null,null,null,null,null,null,null,null,null,null,null,null,null,null,null,null,null,null,null,null,null,null,null,null,null,null,null,null,null,null,null,null,null,null,null,null,null,null,null,null,null,null,null,null,null,null,null,1016002]
[{"$f":"IF(B55=\"\",\"\",IF(MOD(ROW(A51),1),\"\",COUNT(A$4:A54)+1))","v":""},null,"","","","","","","",null,null,"",{"$f":"IF(J55>0,J55-G55,0)","v":0},null,null,{"$f":"IF(L55>0,L55,0)","v":""},"","","","","","","","","","","","","","","","","","","","","","","",null,null,null,null,"","","","","","",null,null,null,null,null,null,null,null,null,null,null,null,null,null,null,null,null,null,null,null,null,null,null,null,null,null,null,null,null,null,null,null,null,null,null,null,null,null,null,1016016]
[{"$f":"IF(B56=\"\",\"\",IF(MOD(ROW(A52),1),\"\",COUNT(A$4:A55)+1))","v":""},null,null,null,null,null,null,null,null,null," ",null,0,null,null,0,null,null,null,null,null,null,null,null,null,null,null,null,null,null,null,null,null,null,null,null,null,null,null,null,null,null,null,null,null,null,null,null,null,null,null,null,null,null,null,null,null,null,null,null,null,null,null,null,null,null,null,null,null,null,null,null,null,null,null,null,null,null,null,null,null,null,null,null,null,null,null,null,1033551]
[{"$f":"IF(B57=\"\",\"\",IF(MOD(ROW(A53),1),\"\",COUNT(A$4:A56)+1))","v":""},null,null,null,"","","",null,"",null," ","",0,null,null,"","",null,null,null,null,null,null,null,null,null,null,null,null,null,null,null,null,null,null,null,null,null,null,null,null,null,null,null,null,null,null,null,null,null,null,null,null,null,null,null,null,null,null,null,null,null,null,null,null,null,null,null,null,null,null,null,null,null,null,null,null,null,null,null,null,null,null,null,null,null,null,null,1033550]
[{"$f":"IF(B58=\"\",\"\",IF(MOD(ROW(A54),1),\"\",COUNT(A$4:A57)+1))","v":""},null,null,null,null,null,null,null,null,null," ",null,0,null,null,0,null,null,null,null,null,null,null,null,null,null,null,null,null,null,null,null,null,null,null,null,null,null,null,null,null,null,null,null,null,null,null,null,null,null,null,null,null,null,null,null,null,null,null,null,null,null,null,null,null,null,null,null,null,null,null,null,null,null,null,null,null,null,null,null,null,null,null,null,null,null,null,null,1033546]
[{"$f":"IF(B59=\"\",\"\",IF(MOD(ROW(A55),1),\"\",COUNT(A$4:A58)+1))","v":""},null,null,null,null,null,null,null,null,null," ",null,0,null,null,0,null,null,null,null,null,null,null,null,null,null,null,null,null,null,null,null,null,null,null,null,null,null,null,null,null,null,null,null,null,null,null,null,null,null,null,null,null,null,null,null,null,null,null,null,null,null,null,null,null,null,null,null,null,null,null,null,null,null,null,null,null,null,null,null,null,null,null,null,null,null,null,null,1033548]
[{"$f":"IF(B60=\"\",\"\",IF(MOD(ROW(A56),1),\"\",COUNT(A$4:A59)+1))","v":""},null,null,null,null,null,null,null,null,null," ",null,0,null,null,0,null,null,null,null,null,null,null,null,null,null,null,null,null,null,null,null,null,null,null,null,null,null,null,null,null,null,null,null,null,null,null,null,null,null,null,null,null,null,null,null,null,null,null,null,null,null,null,null,null,null,null,null,null,null,null,null,null,null,null,null,null,null,null,null,null,null,null,null,null,null,null,null,1033547]
[{"$f":"IF(B61=\"\",\"\",IF(MOD(ROW(A57),1),\"\",COUNT(A$4:A60)+1))","v":""},null,null,null,null,null,null,null,null,null," ",null,0,null,null,0,null,null,null,null,null,null,null,null,null,null,null,null,null,null,null,null,null,null,null,null,null,null,null,null,null,null,null,null,null,null,null,null,null,null,null,null,null,null,null,null,null,null,null,null,null,null,null,null,null,null,null,null,null,null,null,null,null,null,null,null,null,null,null,null,null,null,null,null,null,null,null,null,1033549]
[{"$f":"IF(B62=\"\",\"\",IF(MOD(ROW(A58),1),\"\",COUNT(A$4:A61)+1))","v":""},null,null,null,null,null,null,null,null,null," ",null,0,null,null,0,null,null,null,null,null,null,null,null,null,null,null,null,null,null,null,null,null,null,null,null,null,null,null,null,null,null,null,null,null,null,null,null,null,null,null,null,null,null,null,null,null,null,null,null,null,null,null,null,null,null,null,null,null,null,null,null,null,null,null,null,null,null,null,null,null,null,null,null,null,null,null,null,1033113]
[{"$f":"IF(B63=\"\",\"\",IF(MOD(ROW(A59),1),\"\",COUNT(A$4:A62)+1))","v":""},null,null,null,null,null,null,null,null,null," ",null,0,null,null,0,null,null,null,null,null,null,null,null,null,null,null,null,null,null,null,null,null,null,null,null,null,null,null,null,null,null,null,null,null,null,null,null,null,null,null,null,null,null,null,null,null,null,null,null,null,null,null,null,null,null,null,null,null,null,null,null,null,null,null,null,null,null,null,null,null,null,null,null,null,null,null,null,1033114]
[{"$f":"IF(B64=\"\",\"\",IF(MOD(ROW(A60),1),\"\",COUNT(A$4:A63)+1))","v":""},null,null,null,null,null,null,null,null,null," ",null,0,null,null,0,null,null,null,null,null,null,null,null,null,null,null,null,null,null,null,null,null,null,null,null,null,null,null,null,null,null,null,null,null,null,null,null,null,null,null,null,null,null,null,null,null,null,null,null,null,null,null,null,null,null,null,null,null,null,null,null,null,null,null,null,null,null,null,null,null,null,null,null,null,null,null,null,1033115]
[{"$f":"IF(B65=\"\",\"\",IF(MOD(ROW(A61),1),\"\",COUNT(A$4:A64)+1))","v":""},null,null,null,null,null,null,null,null,null," ",null,0,null,null,0,null,null,null,null,null,null,null,null,null,null,null,null,null,null,null,null,null,null,null,null,null,null,null,null,null,null,null,null,null,null,null,null,null,null,null,null,null,null,null,null,null,null,null,null,null,null,null,null,null,null,null,null,null,null,null,null,null,null,null,null,null,null,null,null,null,null,null,null,null,null,null,null,1033116]
[{"$f":"IF(B66=\"\",\"\",IF(MOD(ROW(A62),1),\"\",COUNT(A$4:A65)+1))","v":""},null,null,null,null,null,null,null,null,null," ",null,0,null,null,0,null,null,null,null,null,null,null,null,null,null,null,null,null,null,null,null,null,null,null,null,null,null,null,null,null,null,null,null,null,null,null,null,null,null,null,null,null,null,null,null,null,null,null,null,null,null,null,null,null,null,null,null,null,null,null,null,null,null,null,null,null,null,null,null,null,null,null,null,null,null,null,null,1033117]
[{"$f":"IF(B67=\"\",\"\",IF(MOD(ROW(A63),1),\"\",COUNT(A$4:A66)+1))","v":""},null,null,null,null,null,null,null,null,null," ",null,0,null,null,0,null,null,null,null,null,null,null,null,null,null,null,null,null,null,null,null,null,null,null,null,null,null,null,null,null,null,null,null,null,null,null,null,null,null,null,null,null,null,null,null,null,null,null,null,null,null,null,null,null,null,null,null,null,null,null,null,null,null,null,null,null,null,null,null,null,null,null,null,null,null,null,null,1033118]
[{"$f":"IF(B68=\"\",\"\",IF(MOD(ROW(A64),1),\"\",COUNT(A$4:A67)+1))","v":""},null,null,null,null,null,null,null,null,null," ",null,0,null,null,0,null,null,null,null,null,null,null,null,null,null,null,null,null,null,null,null,null,null,null,null,null,null,null,null,null,null,null,null,null,null,null,null,null,null,null,null,null,null,null,null,null,null,null,null,null,null,null,null,null,null,null,null,null,null,null,null,null,null,null,null,null,null,null,null,null,null,null,null,null,null,null,null,1033122]
[{"$f":"IF(B69=\"\",\"\",IF(MOD(ROW(A65),1),\"\",COUNT(A$4:A68)+1))","v":""},null,null,null,null,null,null,null,null,null," ",null,0,null,null,0,null,null,null,null,null,null,null,null,null,null,null,null,null,null,null,null,null,null,null,null,null,null,null,null,null,null,null,null,null,null,null,null,null,null,null,null,null,null,null,null,null,null,null,null,null,null,null,null,null,null,null,null,null,null,null,null,null,null,null,null,null,null,null,null,null,null,null,null,null,null,null,null,1033132]
[{"$f":"IF(B70=\"\",\"\",IF(MOD(ROW(A66),1),\"\",COUNT(A$4:A69)+1))","v":""},null,null,null,null,null,null,null,null,null," ",null,0,null,null,0,null,null,null,null,null,null,null,null,null,null,null,null,null,null,null,null,null,null,null,null,null,null,null,null,null,null,null,null,null,null,null,null,null,null,null,null,null,null,null,null,null,null,null,null,null,null,null,null,null,null,null,null,null,null,null,null,null,null,null,null,null,null,null,null,null,null,null,null,null,null,null,null,1033545]
[{"$f":"IF(B71=\"\",\"\",IF(MOD(ROW(A67),1),\"\",COUNT(A$4:A70)+1))","v":""},null,null,null,null,null,null,null,null,null," ",null,0,null,null,0,null,null,null,null,null,null,null,null,null,null,null,null,null,null,null,null,null,null,null,null,null,null,null,null,null,null,null,null,null,null,null,null,null,null,null,null,null,null,null,null,null,null,null,null,null,null,null,null,null,null,null,null,null,null,null,null,null,null,null,null,null,null,null,null,null,null,null,null,null,null,null,null,1033119]
[{"$f":"IF(B72=\"\",\"\",IF(MOD(ROW(A68),1),\"\",COUNT(A$4:A71)+1))","v":""},null,null,null,null,null,null,null,null,null," ",null,0,null,null,0,null,null,null,null,null,null,null,null,null,null,null,null,null,null,null,null,null,null,null,null,null,null,null,null,null,null,null,null,null,null,null,null,null,null,null,null,null,null,null,null,null,null,null,null,null,null,null,null,null,null,null,null,null,null,null,null,null,null,null,null,null,null,null,null,null,null,null,null,null,null,null,null,1033120]
[{"$f":"IF(B73=\"\",\"\",IF(MOD(ROW(A69),1),\"\",COUNT(A$4:A72)+1))","v":""},null,null,null,null,null,null,null,null,null," ",null,0,null,null,0,null,null,null,null,null,null,null,null,null,null,null,null,null,null,null,null,null,null,null,null,null,null,null,null,null,null,null,null,null,null,null,null,null,null,null,null,null,null,null,null,null,null,null,null,null,null,null,null,null,null,null,null,null,null,null,null,null,null,null,null,null,null,null,null,null,null,null,null,null,null,null,null,1033121]
[{"$f":"IF(B74=\"\",\"\",IF(MOD(ROW(A70),1),\"\",COUNT(A$4:A73)+1))","v":""},null,null,null,null,null,null,null,null,null," ",null,0,null,null,0,null,null,null,null,null,null,null,null,null,null,null,null,null,null,null,null,null,null,null,null,null,null,null,null,null,null,null,null,null,null,null,null,null,null,null,null,null,null,null,null,null,null,null,null,null,null,null,null,null,null,null,null,null,null,null,null,null,null,null,null,null,null,null,null,null,null,null,null,null,null,null,null,1050083]
[{"$f":"IF(B75=\"\",\"\",IF(MOD(ROW(A71),1),\"\",COUNT(A$4:A74)+1))","v":""},null,null,null,null,null,null,null,null,null," ",null,0,null,null,0,null,null,null,null,null,null,null,null,null,null,null,null,null,null,null,null,null,null,null,null,null,null,null,null,null,null,null,null,null,null,null,null,null,null,null,null,null,null,null,null,null,null,null,null,null,null,null,null,null,null,null,null,null,null,null,null,null,null,null,null,null,null,null,null,null,null,null,null,null,null,null,null,1050084]
[{"$f":"IF(B76=\"\",\"\",IF(MOD(ROW(A72),1),\"\",COUNT(A$4:A75)+1))","v":""},null,null,null,null,null,null,null,null,null," ",null,0,null,null,0,null,null,null,null,null,null,null,null,null,null,null,null,null,null,null,null,null,null,null,null,null,null,null,null,null,null,null,null,null,null,null,null,null,null,null,null,null,null,null,null,null,null,null,null,null,null,null,null,null,null,null,null,null,null,null,null,null,null,null,null,null,null,null,null,null,null,null,null,null,null,null,null,1050085]
[{"$f":"IF(B77=\"\",\"\",IF(MOD(ROW(A73),1),\"\",COUNT(A$4:A76)+1))","v":""},null,null,null,null,null,null,null,null,null," ",null,0,null,null,0,null,null,null,null,null,null,null,null,null,null,null,null,null,null,null,null,null,null,null,null,null,null,null,null,null,null,null,null,null,null,null,null,null,null,null,null,null,null,null,null,null,null,null,null,null,null,null,null,null,null,null,null,null,null,null,null,null,null,null,null,null,null,null,null,null,null,null,null,null,null,null,null,1050086]
[{"$f":"IF(B78=\"\",\"\",IF(MOD(ROW(A74),1),\"\",COUNT(A$4:A77)+1))","v":""},null,null,null,null,null,null,null,null,null," ",null,0,null,null,0,null,null,null,null,null,null,null,null,null,null,null,null,null,null,null,null,null,null,null,null,null,null,null,null,null,null,null,null,null,null,null,null,null,null,null,null,null,null,null,null,null,null,null,null,null,null,null,null,null,null,null,null,null,null,null,null,null,null,null,null,null,null,null,null,null,null,null,null,null,null,null,null,1050087]
[{"$f":"IF(B79=\"\",\"\",IF(MOD(ROW(A75),1),\"\",COUNT(A$4:A78)+1))","v":""},null,null,null,null,null,null,null,null,null," ",null,0,null,null,0,null,null,null,null,null,null,null,null,null,null,null,null,null,null,null,null,null,null,null,null,null,null,null,null,null,null,null,null,null,null,null,null,null,null,null,null,null,null,null,null,null,null,null,null,null,null,null,null,null,null,null,null,null,null,null,null,null,null,null,null,null,null,null,null,null,null,null,null,null,null,null,null,1050088]
[{"$f":"IF(B80=\"\",\"\",IF(MOD(ROW(A76),1),\"\",COUNT(A$4:A79)+1))","v":""},null,null,null,null,null,null,null,null,null," ",null,0,null,null,0,null,null,null,null,null,null,null,null,null,null,null,null,null,null,null,null,null,null,null,null,null,null,null,null,null,null,null,null,null,null,null,null,null,null,null,null,null,null,null,null,null,null,null,null,null,null,null,null,null,null,null,null,null,null,null,null,null,null,null,null,null,null,null,null,null,null,null,null,null,null,null,null,1050071]
[{"$f":"IF(B81=\"\",\"\",IF(MOD(ROW(A77),1),\"\",COUNT(A$4:A80)+1))","v":""},null,null,null,null,null,null,null,null,null," ",null,0,null,null,0,null,null,null,null,null,null,null,null,null,null,null,null,null,null,null,null,null,null,null,null,null,null,null,null,null,null,null,null,null,null,null,null,null,null,null,null,null,null,null,null,null,null,null,null,null,null,null,null,null,null,null,null,null,null,null,null,null,null,null,null,null,null,null,null,null,null,null,null,null,null,null,null,1050072]
[{"$f":"IF(B82=\"\",\"\",IF(MOD(ROW(A78),1),\"\",COUNT(A$4:A81)+1))","v":""},null,null,null,null,null,null,null,null,null," ",null,0,null,null,0,null,null,null,null,null,null,null,null,null,null,null,null,null,null,null,null,null,null,null,null,null,null,null,null,null,null,null,null,null,null,null,null,null,null,null,null,null,null,null,null,null,null,null,null,null,null,null,null,null,null,null,null,null,null,null,null,null,null,null,null,null,null,null,null,null,null,null,null,null,null,null,null,1050073]
[{"$f":"IF(B83=\"\",\"\",IF(MOD(ROW(A79),1),\"\",COUNT(A$4:A82)+1))","v":""},null,null,null,null,null,null,null,null,null," ",null,0,null,null,0,null,null,null,null,null,null,null,null,null,null,null,null,null,null,null,null,null,null,null,null,null,null,null,null,null,null,null,null,null,null,null,null,null,null,null,null,null,null,null,null,null,null,null,null,null,null,null,null,null,null,null,null,null,null,null,null,null,null,null,null,null,null,null,null,null,null,null,null,null,null,null,null,1050074]
[{"$f":"IF(B84=\"\",\"\",IF(MOD(ROW(A80),1),\"\",COUNT(A$4:A83)+1))","v":""},null,null,null,null,null,null,null,null,null," ",null,0,null,null,0,null,null,null,null,null,null,null,null,null,null,null,null,null,null,null,null,null,null,null,null,null,null,null,null,null,null,null,null,null,null,null,null,null,null,null,null,null,null,null,null,null,null,null,null,null,null,null,null,null,null,null,null,null,null,null,null,null,null,null,null,null,null,null,null,null,null,null,null,null,null,null,null,1050075]
[{"$f":"IF(B85=\"\",\"\",IF(MOD(ROW(A81),1),\"\",COUNT(A$4:A84)+1))","v":""},null,null,null,null,null,null,null,null,null," ",null,0,null,null,0,null,null,null,null,null,null,null,null,null,null,null,null,null,null,null,null,null,null,null,null,null,null,null,null,null,null,null,null,null,null,null,null,null,null,null,null,null,null,null,null,null,null,null,null,null,null,null,null,null,null,null,null,null,null,null,null,null,null,null,null,null,null,null,null,null,null,null,null,null,null,null,null,1050076]
[{"$f":"IF(B86=\"\",\"\",IF(MOD(ROW(A82),1),\"\",COUNT(A$4:A85)+1))","v":""},null,null,null,null,null,null,null,null,null," ",null,0,null,null,0,null,null,null,null,null,null,null,null,null,null,null,null,null,null,null,null,null,null,null,null,null,null,null,null,null,null,null,null,null,null,null,null,null,null,null,null,null,null,null,null,null,null,null,null,null,null,null,null,null,null,null,null,null,null,null,null,null,null,null,null,null,null,null,null,null,null,null,null,null,null,null,null,1050113]
[{"$f":"IF(B87=\"\",\"\",IF(MOD(ROW(A83),1),\"\",COUNT(A$4:A86)+1))","v":""},null,null,null,null,null,null,null,null,null," ",null,0,null,null,0,null,null,null,null,null,null,null,null,null,null,null,null,null,null,null,null,null,null,null,null,null,null,null,null,null,null,null,null,null,null,null,null,null,null,null,null,null,null,null,null,null,null,null,null,null,null,null,null,null,null,null,null,null,null,null,null,null,null,null,null,null,null,null,null,null,null,null,null,null,null,null,null,1050114]
[{"$f":"IF(B88=\"\",\"\",IF(MOD(ROW(A84),1),\"\",COUNT(A$4:A87)+1))","v":""},null,null,null,null,null,null,null,null,null," ",null,0,null,null,0,null,null,null,null,null,null,null,null,null,null,null,null,null,null,null,null,null,null,null,null,null,null,null,null,null,null,null,null,null,null,null,null,null,null,null,null,null,null,null,null,null,null,null,null,null,null,null,null,null,null,null,null,null,null,null,null,null,null,null,null,null,null,null,null,null,null,null,null,null,null,null,null,1050115]
[{"$f":"IF(B89=\"\",\"\",IF(MOD(ROW(A85),1),\"\",COUNT(A$4:A88)+1))","v":""},null,null,null,null,null,null,null,null,null," ",null,0,null,null,0,null,null,null,null,null,null,null,null,null,null,null,null,null,null,null,null,null,null,null,null,null,null,null,null,null,null,null,null,null,null,null,null,null,null,null,null,null,null,null,null,null,null,null,null,null,null,null,null,null,null,null,null,null,null,null,null,null,null,null,null,null,null,null,null,null,null,null,null,null,null,null,null,1050116]
[{"$f":"IF(B90=\"\",\"\",IF(MOD(ROW(A86),1),\"\",COUNT(A$4:A89)+1))","v":""},null,null,null,null,null,null,null,null,null," ",null,0,null,null,0,null,null,null,null,null,null,null,null,null,null,null,null,null,null,null,null,null,null,null,null,null,null,null,null,null,null,null,null,null,null,null,null,null,null,null,null,null,null,null,null,null,null,null,null,null,null,null,null,null,null,null,null,null,null,null,null,null,null,null,null,null,null,null,null,null,null,null,null,null,null,null,null,1050117]
[{"$f":"IF(B91=\"\",\"\",IF(MOD(ROW(A87),1),\"\",COUNT(A$4:A90)+1))","v":""},null,null,null,null,null,null,null,null,null," ",null,0,null,null,0,null,null,null,null,null,null,null,null,null,null,null,null,null,null,null,null,null,null,null,null,null,null,null,null,null,null,null,null,null,null,null,null,null,null,null,null,null,null,null,null,null,null,null,null,null,null,null,null,null,null,null,null,null,null,null,null,null,null,null,null,null,null,null,null,null,null,null,null,null,null,null,null,1050118]
[{"$f":"IF(B92=\"\",\"\",IF(MOD(ROW(A88),1),\"\",COUNT(A$4:A91)+1))","v":""},null,null,null,null,null,null,null,null,null,{"$f":"IF(H92>0,(H92+I92)-(E92+F92),\" \")","v":" "},null,0,null,null,0,null,null,null,null,null,null,null,null,null,null,null,null,null,null,null,null,null,null,null,null,null,null,null,null,null,null,null,null,null,null,null,null,null,null,null,null,null,null,null,null,null,null,null,null,null,null,null,null,null,null,null,null,null,null,null,null,null,null,null,null,null,null,null,null,null,null,null,null,null,null,null,null,1050119]
[{"$f":"IF(B93=\"\",\"\",IF(MOD(ROW(A89),1),\"\",COUNT(A$4:A92)+1))","v":""},null,null,null,null,null,null,null,null,null," ",null,0,null,null,0,null,null,null,null,null,null,null,null,null,null,null,null,null,null,null,null,null,null,null,null,null,null,null,null,null,null,null,null,null,null,null,null,null,null,null,null,null,null,null,null,null,null,null,null,null,null,null,null,null,null,null,null,null,null,null,null,null,null,null,null,null,null,null,null,null,null,null,null,null,null,null,null,1050120]
[{"$f":"IF(B94=\"\",\"\",IF(MOD(ROW(A90),1),\"\",COUNT(A$4:A93)+1))","v":""},null,null,null,null,null,null,null,null,null," ",null,0,null,null,0,null,null,null,null,null,null,null,null,null,null,null,null,null,null,null,null,null,null,null,null,null,null,null,null,null,null,null,null,null,null,null,null,null,null,null,null,null,null,null,null,null,null,null,null,null,null,null,null,null,null,null,null,null,null,null,null,null,null,null,null,null,null,null,null,null,null,null,null,null,null,null,null,1050121]
[{"$f":"IF(B95=\"\",\"\",IF(MOD(ROW(A91),1),\"\",COUNT(A$4:A94)+1))","v":""},null,null,null,null,null,null,null,null,null," ",null,0,null,null,0,null,null,null,null,null,null,null,null,null,null,null,null,null,null,null,null,null,null,null,null,null,null,null,null,null,null,null,null,null,null,null,null,null,null,null,null,null,null,null,null,null,null,null,null,null,null,null,null,null,null,null,null,null,null,null,null,null,null,null,null,null,null,null,null,null,null,null,null,null,null,null,null,1050122]
[{"$f":"IF(B96=\"\",\"\",IF(MOD(ROW(A92),1),\"\",COUNT(A$4:A95)+1))","v":""},null,null,null,null,null,null,null,null,null," ",null,0,null,null,0,null,null,null,null,null,null,null,null,null,null,null,null,null,null,null,null,null,null,null,null,null,null,null,null,null,null,null,null,null,null,null,null,null,null,null,null,null,null,null,null,null,null,null,null,null,null,null,null,null,null,null,null,null,null,null,null,null,null,null,null,null,null,null,null,null,null,null,null,null,null,null,null,1050123]
[{"$f":"IF(B97=\"\",\"\",IF(MOD(ROW(A93),1),\"\",COUNT(A$4:A96)+1))","v":""},null,null,null,null,null,null,null,null,null," ",null,0,null,null,0,null,null,null,null,null,null,null,null,null,null,null,null,null,null,null,null,null,null,null,null,null,null,null,null,null,null,null,null,null,null,null,null,null,null,null,null,null,null,null,null,null,null,null,null,null,null,null,null,null,null,null,null,null,null,null,null,null,null,null,null,null,null,null,null,null,null,null,null,null,null,null,null,1050124]
[{"$f":"IF(B98=\"\",\"\",IF(MOD(ROW(A94),1),\"\",COUNT(A$4:A97)+1))","v":""},null,null,null,null,null,null,null,null,null," ",null,0,null,null,0,null,null,null,null,null,null,null,null,null,null,null,null,null,null,null,null,null,null,null,null,null,null,null,null,null,null,null,null,null,null,null,null,null,null,null,null,null,null,null,null,null,null,null,null,null,null,null,null,null,null,null,null,null,null,null,null,null,null,null,null,null,null,null,null,null,null,null,null,null,null,null,null,1050095]
[{"$f":"IF(B99=\"\",\"\",IF(MOD(ROW(A95),1),\"\",COUNT(A$4:A98)+1))","v":""},null,null,null,null,null,null,null,null,null," ",null,0,null,null,0,null,null,null,null,null,null,null,null,null,null,null,null,null,null,null,null,null,null,null,null,null,null,null,null,null,null,null,null,null,null,null,null,null,null,null,null,null,null,null,null,null,null,null,null,null,null,null,null,null,null,null,null,null,null,null,null,null,null,null,null,null,null,null,null,null,null,null,null,null,null,null,null,1050096]
[{"$f":"IF(B100=\"\",\"\",IF(MOD(ROW(A96),1),\"\",COUNT(A$4:A99)+1))","v":""},null,null,null,null,null,null,null,null,null," ",null,0,null,null,0,null,null,null,null,null,null,null,null,null,null,null,null,null,null,null,null,null,null,null,null,null,null,null,null,null,null,null,null,null,null,null,null,null,null,null,null,null,null,null,null,null,null,null,null,null,null,null,null,null,null,null,null,null,null,null,null,null,null,null,null,null,null,null,null,null,null,null,null,null,null,null,null,1050097]
[{"$f":"IF(B101=\"\",\"\",IF(MOD(ROW(A97),1),\"\",COUNT(A$4:A100)+1))","v":""},null,null,null,null,null,null,null,null,null," ",null,0,null,null,0,null,null,null,null,null,null,null,null,null,null,null,null,null,null,null,null,null,null,null,null,null,null,null,null,null,null,null,null,null,null,null,null,null,null,null,null,null,null,null,null,null,null,null,null,null,null,null,null,null,null,null,null,null,null,null,null,null,null,null,null,null,null,null,null,null,null,null,null,null,null,null,null,1050098]
[{"$f":"IF(B102=\"\",\"\",IF(MOD(ROW(A98),1),\"\",COUNT(A$4:A101)+1))","v":""},null,null,null,null,null,null,null,null,null," ",null,0,null,null,0,null,null,null,null,null,null,null,null,null,null,null,null,null,null,null,null,null,null,null,null,null,null,null,null,null,null,null,null,null,null,null,null,null,null,null,null,null,null,null,null,null,null,null,null,null,null,null,null,null,null,null,null,null,null,null,null,null,null,null,null,null,null,null,null,null,null,null,null,null,null,null,null,1050099]
[{"$f":"IF(B103=\"\",\"\",IF(MOD(ROW(A99),1),\"\",COUNT(A$4:A102)+1))","v":""},null,null,null,null,null,null,null,null,null," ",null,0,null,null,0,null,null,null,null,null,null,null,null,null,null,null,null,null,null,null,null,null,null,null,null,null,null,null,null,null,null,null,null,null,null,null,null,null,null,null,null,null,null,null,null,null,null,null,null,null,null,null,null,null,null,null,null,null,null,null,null,null,null,null,null,null,null,null,null,null,null,null,null,null,null,null,null,1050100]
[{"$f":"IF(B104=\"\",\"\",IF(MOD(ROW(A100),1),\"\",COUNT(A$4:A103)+1))","v":""},null,null,null,null,null,null,null,null,null," ",null,0,null,null,0,null,null,null,null,null,null,null,null,null,null,null,null,null,null,null,null,null,null,null,null,null,null,null,null,null,null,null,null,null,null,null,null,null,null,null,null,null,null,null,null,null,null,null,null,null,null,null,null,null,null,null,null,null,null,null,null,null,null,null,null,null,null,null,null,null,null,null,null,null,null,null,null,1050101]
[{"$f":"IF(B105=\"\",\"\",IF(MOD(ROW(A101),1),\"\",COUNT(A$4:A104)+1))","v":""},null,null,null,null,null,null,null,null,null," ",null,0,null,null,0,null,null,null,null,null,null,null,null,null,null,null,null,null,null,null,null,null,null,null,null,null,null,null,null,null,null,null,null,null,null,null,null,null,null,null,null,null,null,null,null,null,null,null,null,null,null,null,null,null,null,null,null,null,null,null,null,null,null,null,null,null,null,null,null,null,null,null,null,null,null,null,null,1050102]
[{"$f":"IF(B106=\"\",\"\",IF(MOD(ROW(A102),1),\"\",COUNT(A$4:A105)+1))","v":""},null,null,null,null,null,null,null,null,null," ",null,0,null,null,0,null,null,null,null,null,null,null,null,null,null,null,null,null,null,null,null,null,null,null,null,null,null,null,null,null,null,null,null,null,null,null,null,null,null,null,null,null,null,null,null,null,null,null,null,null,null,null,null,null,null,null,null,null,null,null,null,null,null,null,null,null,null,null,null,null,null,null,null,null,null,null,null,1050103]
[{"$f":"IF(B107=\"\",\"\",IF(MOD(ROW(A103),1),\"\",COUNT(A$4:A106)+1))","v":""},null,null,null,null,null,null,null,null,null," ",null,0,null,null,0,null,null,null,null,null,null,null,null,null,null,null,null,null,null,null,null,null,null,null,null,null,null,null,null,null,null,null,null,null,null,null,null,null,null,null,null,null,null,null,null,null,null,null,null,null,null,null,null,null,null,null,null,null,null,null,null,null,null,null,null,null,null,null,null,null,null,null,null,null,null,null,null,1050104]
[{"$f":"IF(B108=\"\",\"\",IF(MOD(ROW(A104),1),\"\",COUNT(A$4:A107)+1))","v":""},null,null,null,null,null,null,null,null,null," ",null,0,null,null,0,null,null,null,null,null,null,null,null,null,null,null,null,null,null,null,null,null,null,null,null,null,null,null,null,null,null,null,null,null,null,null,null,null,null,null,null,null,null,null,null,null,null,null,null,null,null,null,null,null,null,null,null,null,null,null,null,null,null,null,null,null,null,null,null,null,null,null,null,null,null,null,null,1050105]
[{"$f":"IF(B109=\"\",\"\",IF(MOD(ROW(A105),1),\"\",COUNT(A$4:A108)+1))","v":""},null,null,null,null,null,null,null,null,null," ",null,0,null,null,0,null,null,null,null,null,null,null,null,null,null,null,null,null,null,null,null,null,null,null,null,null,null,null,null,null,null,null,null,null,null,null,null,null,null,null,null,null,null,null,null,null,null,null,null,null,null,null,null,null,null,null,null,null,null,null,null,null,null,null,null,null,null,null,null,null,null,null,null,null,null,null,null,1050106]
[{"$f":"IF(B110=\"\",\"\",IF(MOD(ROW(A106),1),\"\",COUNT(A$4:A109)+1))","v":""},null,null,null,null,null,null,null,null,null," ",null,0,null,null,0,null,null,null,null,null,null,null,null,null,null,null,null,null,null,null,null,null,null,null,null,null,null,null,null,null,null,null,null,null,null,null,null,null,null,null,null,null,null,null,null,null,null,null,null,null,null,null,null,null,null,null,null,null,null,null,null,null,null,null,null,null,null,null,null,null,null,null,null,null,null,null,null,1050089]
[{"$f":"IF(B111=\"\",\"\",IF(MOD(ROW(A107),1),\"\",COUNT(A$4:A110)+1))","v":""},null,null,null,null,null,null,null,null,null," ",null,0,null,null,0,null,null,null,null,null,null,null,null,null,null,null,null,null,null,null,null,null,null,null,null,null,null,null,null,null,null,null,null,null,null,null,null,null,null,null,null,null,null,null,null,null,null,null,null,null,null,null,null,null,null,null,null,null,null,null,null,null,null,null,null,null,null,null,null,null,null,null,null,null,null,null,null,1050090]
[{"$f":"IF(B112=\"\",\"\",IF(MOD(ROW(A108),1),\"\",COUNT(A$4:A111)+1))","v":""},null,null,null,null,null,null,null,null,null," ",null,0,null,null,0,null,null,null,null,null,null,null,null,null,null,null,null,null,null,null,null,null,null,null,null,null,null,null,null,null,null,null,null,null,null,null,null,null,null,null,null,null,null,null,null,null,null,null,null,null,null,null,null,null,null,null,null,null,null,null,null,null,null,null,null,null,null,null,null,null,null,null,null,null,null,null,null,1050091]
[{"$f":"IF(B113=\"\",\"\",IF(MOD(ROW(A109),1),\"\",COUNT(A$4:A112)+1))","v":""},null,null,null,null,null,null,null,null,null," ",null,0,null,null,0,null,null,null,null,null,null,null,null,null,null,null,null,null,null,null,null,null,null,null,null,null,null,null,null,null,null,null,null,null,null,null,null,null,null,null,null,null,null,null,null,null,null,null,null,null,null,null,null,null,null,null,null,null,null,null,null,null,null,null,null,null,null,null,null,null,null,null,null,null,null,null,null,1050092]
[{"$f":"IF(B114=\"\",\"\",IF(MOD(ROW(A110),1),\"\",COUNT(A$4:A113)+1))","v":""},null,null,null,null,null,null,null,null,null," ",null,0,null,null,0,null,null,null,null,null,null,null,null,null,null,null,null,null,null,null,null,null,null,null,null,null,null,null,null,null,null,null,null,null,null,null,null,null,null,null,null,null,null,null,null,null,null,null,null,null,null,null,null,null,null,null,null,null,null,null,null,null,null,null,null,null,null,null,null,null,null,null,null,null,null,null,null,1050093]
[{"$f":"IF(B115=\"\",\"\",IF(MOD(ROW(A111),1),\"\",COUNT(A$4:A114)+1))","v":""},null,null,null,null,null,null,null,null,null," ",null,0,null,null,0,null,null,null,null,null,null,null,null,null,null,null,null,null,null,null,null,null,null,null,null,null,null,null,null,null,null,null,null,null,null,null,null,null,null,null,null,null,null,null,null,null,null,null,null,null,null,null,null,null,null,null,null,null,null,null,null,null,null,null,null,null,null,null,null,null,null,null,null,null,null,null,null,1050094]
[{"$f":"IF(B116=\"\",\"\",IF(MOD(ROW(A112),1),\"\",COUNT(A$4:A115)+1))","v":""},null,null,null,null,null,null,null,null,null," ",null,0,null,null,0,null,null,null,null,null,null,null,null,null,null,null,null,null,null,null,null,null,null,null,null,null,null,null,null,null,null,null,null,null,null,null,null,null,null,null,null,null,null,null,null,null,null,null,null,null,null,null,null,null,null,null,null,null,null,null,null,null,null,null,null,null,null,null,null,null,null,null,null,null,null,null,null,1050107]
[{"$f":"IF(B117=\"\",\"\",IF(MOD(ROW(A113),1),\"\",COUNT(A$4:A116)+1))","v":""},null,null,null,null,null,null,null,null,null," ",null,0,null,null,0,null,null,null,null,null,null,null,null,null,null,null,null,null,null,null,null,null,null,null,null,null,null,null,null,null,null,null,null,null,null,null,null,null,null,null,null,null,null,null,null,null,null,null,null,null,null,null,null,null,null,null,null,null,null,null,null,null,null,null,null,null,null,null,null,null,null,null,null,null,null,null,null,1050108]
[{"$f":"IF(B118=\"\",\"\",IF(MOD(ROW(A114),1),\"\",COUNT(A$4:A117)+1))","v":""},null,null,null,null,null,null,null,null,null," ",null,0,null,null,0,null,null,null,null,null,null,null,null,null,null,null,null,null,null,null,null,null,null,null,null,null,null,null,null,null,null,null,null,null,null,null,null,null,null,null,null,null,null,null,null,null,null,null,null,null,null,null,null,null,null,null,null,null,null,null,null,null,null,null,null,null,null,null,null,null,null,null,null,null,null,null,null,1050109]
[{"$f":"IF(B119=\"\",\"\",IF(MOD(ROW(A115),1),\"\",COUNT(A$4:A118)+1))","v":""},null,null,null,null,null,null,null,null,null," ",null,{"$f":"IF(J119>0,J119-G119,0)","v":0},null,null,{"$f":"IF(L119>0,L119,0)","v":0},null,null,null,null,null,null,null,null,null,null,null,null,null,null,null,null,null,null,null,null,null,null,null,null,null,null,null,null,null,null,null,null,null,null,null,null,null,null,null,null,null,null,null,null,null,null,null,null,null,null,null,null,null,null,null,null,null,null,null,null,null,null,null,null,null,null,null,null,null,null,null,null,1050110]
[{"$f":"IF(B120=\"\",\"\",IF(MOD(ROW(A116),1),\"\",COUNT(A$4:A119)+1))","v":""},null,null,null,null,null,null,null,null,null," ",null,0,null,null,0,null,null,null,null,null,null,null,null,null,null,null,null,null,null,null,null,null,null,null,null,null,null,null,null,null,null,null,null,null,null,null,null,null,null,null,null,null,null,null,null,null,null,null,null,null,null,null,null,null,null,null,null,null,null,null,null,null,null,null,null,null,null,null,null,null,null,null,null,null,null,null,null,1050111]
[{"$f":"IF(B121=\"\",\"\",IF(MOD(ROW(A117),1),\"\",COUNT(A$4:A120)+1))","v":""},null,null,null,null,null,null,null,null,null," ",null,0,null,null,0,null,null,null,null,null,null,null,null,null,null,null,null,null,null,null,null,null,null,null,null,null,null,null,null,null,null,null,null,null,null,null,null,null,null,null,null,null,null,null,null,null,null,null,null,null,null,null,null,null,null,null,null,null,null,null,null,null,null,null,null,null,null,null,null,null,null,null,null,null,null,null,null,1050112]
[{"$f":"IF(B122=\"\",\"\",IF(MOD(ROW(A118),1),\"\",COUNT(A$4:A121)+1))","v":""},null,null,null,null,null,null,null,null,null," ",null,0,null,null,0,null,null,null,null,null,null,null,null,null,null,null,null,null,null,null,null,null,null,null,null,null,null,null,null,null,null,null,null,null,null,null,null,null,null,null,null,null,null,null,null,null,null,null,null,null,null,null,null,null,null,null,null,null,null,null,null,null,null,null,null,null,null,null,null,null,null,null,null,null,null,null,null,1050077]
[{"$f":"IF(B123=\"\",\"\",IF(MOD(ROW(A119),1),\"\",COUNT(A$4:A122)+1))","v":""},null,null,null,null,null,null,null,null,null," ",null,0,null,null,0,null,null,null,null,null,null,null,null,null,null,null,null,null,null,null,null,null,null,null,null,null,null,null,null,null,null,null,null,null,null,null,null,null,null,null,null,null,null,null,null,null,null,null,null,null,null,null,null,null,null,null,null,null,null,null,null,null,null,null,null,null,null,null,null,null,null,null,null,null,null,null,null,1050078]
[{"$f":"IF(B124=\"\",\"\",IF(MOD(ROW(A120),1),\"\",COUNT(A$4:A123)+1))","v":""},null,null,null,null,null,null,null,null,null," ",null,0,null,null,0,null,null,null,null,null,null,null,null,null,null,null,null,null,null,null,null,null,null,null,null,null,null,null,null,null,null,null,null,null,null,null,null,null,null,null,null,null,null,null,null,null,null,null,null,null,null,null,null,null,null,null,null,null,null,null,null,null,null,null,null,null,null,null,null,null,null,null,null,null,null,null,null,1050079]
[{"$f":"IF(B125=\"\",\"\",IF(MOD(ROW(A121),1),\"\",COUNT(A$4:A124)+1))","v":""},null,null,null,null,null,null,null,null,null," ",null,0,null,null,0,null,null,null,null,null,null,null,null,null,null,null,null,null,null,null,null,null,null,null,null,null,null,null,null,null,null,null,null,null,null,null,null,null,null,null,null,null,null,null,null,null,null,null,null,null,null,null,null,null,null,null,null,null,null,null,null,null,null,null,null,null,null,null,null,null,null,null,null,null,null,null,null,1050080]
[{"$f":"IF(B126=\"\",\"\",IF(MOD(ROW(A122),1),\"\",COUNT(A$4:A125)+1))","v":""},null,null,null,null,null,null,null,null,null," ",null,0,null,null,0,null,null,null,null,null,null,null,null,null,null,null,null,null,null,null,null,null,null,null,null,null,null,null,null,null,null,null,null,null,null,null,null,null,null,null,null,null,null,null,null,null,null,null,null,null,null,null,null,null,null,null,null,null,null,null,null,null,null,null,null,null,null,null,null,null,null,null,null,null,null,null,null,1050081]
[{"$f":"IF(B127=\"\",\"\",IF(MOD(ROW(A123),1),\"\",COUNT(A$4:A126)+1))","v":""},null,null,null,null,null,null,null,null,null," ",null,0,null,null,0,null,null,null,null,null,null,null,null,null,null,null,null,null,null,null,null,null,null,null,null,null,null,null,null,null,null,null,null,null,null,null,null,null,null,null,null,null,null,null,null,null,null,null,null,null,null,null,null,null,null,null,null,null,null,null,null,null,null,null,null,null,null,null,null,null,null,null,null,null,null,null,null,1050082]
[{"$f":"IF(B128=\"\",\"\",IF(MOD(ROW(A124),1),\"\",COUNT(A$4:A127)+1))","v":""},null,null,null,null,null,null,null,null,null," ",null,0,null,null,0]
[{"$f":"IF(B129=\"\",\"\",IF(MOD(ROW(A125),1),\"\",COUNT(A$4:A128)+1))","v":""},null,null,null,null,null,null,null,null,null," ",null,0,null,null,0]
[{"$f":"IF(B130=\"\",\"\",IF(MOD(ROW(A126),1),\"\",COUNT(A$4:A129)+1))","v":""},null,null,null,null,null,null,null,null,null," ",null,0,null,null,0]
[{"$f":"IF(B131=\"\",\"\",IF(MOD(ROW(A127),1),\"\",COUNT(A$4:A130)+1))","v":""},null,null,null,null,null,null,null,null,null," ",null,0,null,null,0]
[{"$f":"IF(B132=\"\",\"\",IF(MOD(ROW(A128),1),\"\",COUNT(A$4:A131)+1))","v":""},null,null,null,null,null,null,null,null,null," ",null,0,null,null,0]
[{"$f":"IF(B133=\"\",\"\",IF(MOD(ROW(A129),1),\"\",COUNT(A$4:A132)+1))","v":""},null,null,null,null,null,null,null,null,null," ",null,0,null,null,0]
[{"$f":"IF(B134=\"\",\"\",IF(MOD(ROW(A130),1),\"\",COUNT(A$4:A133)+1))","v":""},null,null,null,null,null,null,null,null,null," ",null,0,null,null,0]
[{"$f":"IF(B135=\"\",\"\",IF(MOD(ROW(A131),1),\"\",COUNT(A$4:A134)+1))","v":""},null,null,null,null,null,null,null,null,null," ",null,0,null,null,0]
[{"$f":"IF(B136=\"\",\"\",IF(MOD(ROW(A132),1),\"\",COUNT(A$4:A135)+1))","v":""},null,null,null,null,null,null,null,null,null," ",null,0,null,null,0]
[{"$f":"IF(B137=\"\",\"\",IF(MOD(ROW(A133),1),\"\",COUNT(A$4:A136)+1))","v":""},null,null,null,null,null,null,null,null,null," ",null,0,null,null,0]
[{"$f":"IF(B138=\"\",\"\",IF(MOD(ROW(A134),1),\"\",COUNT(A$4:A137)+1))","v":""},null,null,null,null,null,null,null,null,null," ",null,0,null,null,0]
[{"$f":"IF(B139=\"\",\"\",IF(MOD(ROW(A135),1),\"\",COUNT(A$4:A138)+1))","v":""},null,null,null,null,null,null,null,null,null," ",null,0,null,null,0]
[{"$f":"IF(B140=\"\",\"\",IF(MOD(ROW(A136),1),\"\",COUNT(A$4:A139)+1))","v":""},null,null,null,null,null,null,null,null,null," ",null,0,null,null,0]
[{"$f":"IF(B141=\"\",\"\",IF(MOD(ROW(A137),1),\"\",COUNT(A$4:A140)+1))","v":""},null,null,null,null,null,null,null,null,null," ",null,0,null,null,0]
[{"$f":"IF(B142=\"\",\"\",IF(MOD(ROW(A138),1),\"\",COUNT(A$4:A141)+1))","v":""},null,null,null,null,null,null,null,null,null," ",null,0,null,null,0]
[{"$f":"IF(B143=\"\",\"\",IF(MOD(ROW(A139),1),\"\",COUNT(A$4:A142)+1))","v":""},null,null,null,null,null,null,null,null,null," ",null,0,null,null,0]
[{"$f":"IF(B144=\"\",\"\",IF(MOD(ROW(A140),1),\"\",COUNT(A$4:A143)+1))","v":""},null,null,null,null,null,null,null,null,null," ",null,0,null,null,0]
[{"$f":"IF(B145=\"\",\"\",IF(MOD(ROW(A141),1),\"\",COUNT(A$4:A144)+1))","v":""},null,null,null,null,null,null,null,null,null," ",null,0,null,null,0]
[{"$f":"IF(B146=\"\",\"\",IF(MOD(ROW(A142),1),\"\",COUNT(A$4:A145)+1))","v":""},null,null,null,null,null,null,null,null,null," ",null,0,null,null,0]
[{"$f":"IF(B147=\"\",\"\",IF(MOD(ROW(A143),1),\"\",COUNT(A$4:A146)+1))","v":""},null,null,null,null,null,null,null,null,null," ",null,0,null,null,0]
[{"$f":"IF(B148=\"\",\"\",IF(MOD(ROW(A144),1),\"\",COUNT(A$4:A147)+1))","v":""},null,null,null,null,null,null,null,null,null," ",null,0,null,null,0]
[{"$f":"IF(B149=\"\",\"\",IF(MOD(ROW(A145),1),\"\",COUNT(A$4:A148)+1))","v":""},null,null,null,null,null,null,null,null,null," ",null,0,null,null,0]
[{"$f":"IF(B150=\"\",\"\",IF(MOD(ROW(A146),1),\"\",COUNT(A$4:A149)+1))","v":""},null,null,null,null,null,null,null,null,null," ",null,0,null,null,0]
[{"$f":"IF(B151=\"\",\"\",IF(MOD(ROW(A147),1),\"\",COUNT(A$4:A150)+1))","v":""},null,null,null,null,null,null,null,null,null," ",null,0,null,null,0]
[{"$f":"IF(B152=\"\",\"\",IF(MOD(ROW(A148),1),\"\",COUNT(A$4:A151)+1))","v":""},null,null,null,null,null,null,null,null,null," ",null,0,null,null,0]
[{"$f":"IF(B153=\"\",\"\",IF(MOD(ROW(A149),1),\"\",COUNT(A$4:A152)+1))","v":""},null,null,null,null,null,null,null,null,null," ",null,0,null,null,0]
[{"$f":"IF(B154=\"\",\"\",IF(MOD(ROW(A150),1),\"\",COUNT(A$4:A153)+1))","v":""},null,null,null,null,null,null,null,null,null," ",null,0,null,null,0]
[{"$f":"IF(B155=\"\",\"\",IF(MOD(ROW(A151),1),\"\",COUNT(A$4:A154)+1))","v":""},null,null,null,null,null,null,null,null,null," ",null,0,null,null,0]
[{"$f":"IF(B156=\"\",\"\",IF(MOD(ROW(A152),1),\"\",COUNT(A$4:A155)+1))","v":""},null,null,null,null,null,null,null,null,null,{"$f":"IF(H156>0,(H156+I156)-(E156+F156),\" \")","v":" "},null,0,null,null,0]
[{"$f":"IF(B157=\"\",\"\",IF(MOD(ROW(A153),1),\"\",COUNT(A$4:A156)+1))","v":""},null,null,null,null,null,null,null,null,null," ",null,0,null,null,0]
[{"$f":"IF(B158=\"\",\"\",IF(MOD(ROW(A154),1),\"\",COUNT(A$4:A157)+1))","v":""},null,null,null,null,null,null,null,null,null," ",null,0,null,null,0]
[{"$f":"IF(B159=\"\",\"\",IF(MOD(ROW(A155),1),\"\",COUNT(A$4:A158)+1))","v":""},null,null,null,null,null,null,null,null,null," ",null,0,null,null,0]
[{"$f":"IF(B160=\"\",\"\",IF(MOD(ROW(A156),1),\"\",COUNT(A$4:A159)+1))","v":""},null,null,null,null,null,null,null,null,null," ",null,0,null,null,0]
[{"$f":"IF(B161=\"\",\"\",IF(MOD(ROW(A157),1),\"\",COUNT(A$4:A160)+1))","v":""},null,null,null,null,null,null,null,null,null," ",null,0,null,null,0]
[{"$f":"IF(B162=\"\",\"\",IF(MOD(ROW(A158),1),\"\",COUNT(A$4:A161)+1))","v":""},null,null,null,null,null,null,null,null,null," ",null,0,null,null,0]
[{"$f":"IF(B163=\"\",\"\",IF(MOD(ROW(A159),1),\"\",COUNT(A$4:A162)+1))","v":""},null,null,null,null,null,null,null,null,null," ",null,0,null,null,0]
[{"$f":"IF(B164=\"\",\"\",IF(MOD(ROW(A160),1),\"\",COUNT(A$4:A163)+1))","v":""},null,null,null,null,null,null,null,null,null," ",null,0,null,null,0]
[{"$f":"IF(B165=\"\",\"\",IF(MOD(ROW(A161),1),\"\",COUNT(A$4:A164)+1))","v":""},null,null,null,null,null,null,null,null,null," ",null,0,null,null,0]
[{"$f":"IF(B166=\"\",\"\",IF(MOD(ROW(A162),1),\"\",COUNT(A$4:A165)+1))","v":""},null,null,null,null,null,null,null,null,null," ",null,0,null,null,0]
[{"$f":"IF(B167=\"\",\"\",IF(MOD(ROW(A163),1),\"\",COUNT(A$4:A166)+1))","v":""},null,null,null,null,null,null,null,null,null," ",null,0,null,null,0]
[{"$f":"IF(B168=\"\",\"\",IF(MOD(ROW(A164),1),\"\",COUNT(A$4:A167)+1))","v":""},null,null,null,null,null,null,null,null,null," ",null,0,null,null,0]
[{"$f":"IF(B169=\"\",\"\",IF(MOD(ROW(A165),1),\"\",COUNT(A$4:A168)+1))","v":""},null,null,null,null,null,null,null,null,null," ",null,0,null,null,0]
[{"$f":"IF(B170=\"\",\"\",IF(MOD(ROW(A166),1),\"\",COUNT(A$4:A169)+1))","v":""},null,null,null,null,null,null,null,null,null," ",null,0,null,null,0]
[{"$f":"IF(B171=\"\",\"\",IF(MOD(ROW(A167),1),\"\",COUNT(A$4:A170)+1))","v":""},null,null,null,null,null,null,null,null,null," ",null,0,null,null,0]
[{"$f":"IF(B172=\"\",\"\",IF(MOD(ROW(A168),1),\"\",COUNT(A$4:A171)+1))","v":""},null,null,null,null,null,null,null,null,null," ",null,0,null,null,0]
[{"$f":"IF(B173=\"\",\"\",IF(MOD(ROW(A169),1),\"\",COUNT(A$4:A172)+1))","v":""},null,null,null,null,null,null,null,null,null," ",null,0,null,null,0]
[{"$f":"IF(B174=\"\",\"\",IF(MOD(ROW(A170),1),\"\",COUNT(A$4:A173)+1))","v":""},null,null,null,null,null,null,null,null,null," ",null,0,null,null,0]
[{"$f":"IF(B175=\"\",\"\",IF(MOD(ROW(A171),1),\"\",COUNT(A$4:A174)+1))","v":""},null,null,null,null,null,null,null,null,null," ",null,0,null,null,0]
[{"$f":"IF(B176=\"\",\"\",IF(MOD(ROW(A172),1),\"\",COUNT(A$4:A175)+1))","v":""},null,null,null,null,null,null,null,null,null," ",null,0,null,null,0]
[{"$f":"IF(B177=\"\",\"\",IF(MOD(ROW(A173),1),\"\",COUNT(A$4:A176)+1))","v":""},null,null,null,null,null,null,null,null,null," ",null,0,null,null,0]
[{"$f":"IF(B178=\"\",\"\",IF(MOD(ROW(A174),1),\"\",COUNT(A$4:A177)+1))","v":""},null,null,null,null,null,null,null,null,null," ",null,0,null,null,0]
[{"$f":"IF(B179=\"\",\"\",IF(MOD(ROW(A175),1),\"\",COUNT(A$4:A178)+1))","v":""},null,null,null,null,null,null,null,null,null," ",null,0,null,null,0]
[{"$f":"IF(B180=\"\",\"\",IF(MOD(ROW(A176),1),\"\",COUNT(A$4:A179)+1))","v":""},null,null,null,null,null,null,null,null,null," ",null,0,null,null,0]
[{"$f":"IF(B181=\"\",\"\",IF(MOD(ROW(A177),1),\"\",COUNT(A$4:A180)+1))","v":""},null,null,null,null,null,null,null,null,null," ",null,0,null,null,0]
[{"$f":"IF(B182=\"\",\"\",IF(MOD(ROW(A178),1),\"\",COUNT(A$4:A181)+1))","v":""},null,null,null,null,null,null,null,null,null," ",null,0,null,null,0]
[{"$f":"IF(B183=\"\",\"\",IF(MOD(ROW(A179),1),\"\",COUNT(A$4:A182)+1))","v":""},null,null,null,null,null,null,null,null,null," ",null,{"$f":"IF(J183>0,J183-G183,0)","v":0},null,null,{"$f":"IF(L183>0,L183,0)","v":0}]
[{"$f":"IF(B184=\"\",\"\",IF(MOD(ROW(A180),1),\"\",COUNT(A$4:A183)+1))","v":""},null,null,null,null,null,null,null,null,null," ",null,0,null,null,0]
[{"$f":"IF(B185=\"\",\"\",IF(MOD(ROW(A181),1),\"\",COUNT(A$4:A184)+1))","v":""},null,null,null,null,null,null,null,null,null," ",null,0,null,null,0]
[{"$f":"IF(B186=\"\",\"\",IF(MOD(ROW(A182),1),\"\",COUNT(A$4:A185)+1))","v":""},null,null,null,null,null,null,null,null,null," ",null,0,null,null,0]
[{"$f":"IF(B187=\"\",\"\",IF(MOD(ROW(A183),1),\"\",COUNT(A$4:A186)+1))","v":""},null,null,null,null,null,null,null,null,null," ",null,0,null,null,0]
[{"$f":"IF(B188=\"\",\"\",IF(MOD(ROW(A184),1),\"\",COUNT(A$4:A187)+1))","v":""},null,null,null,null,null,null,null,null,null," ",null,0,null,null,0]
[{"$f":"IF(B189=\"\",\"\",IF(MOD(ROW(A185),1),\"\",COUNT(A$4:A188)+1))","v":""},null,null,null,null,null,null,null,null,null," ",null,0,null,null,0]
[{"$f":"IF(B190=\"\",\"\",IF(MOD(ROW(A186),1),\"\",COUNT(A$4:A189)+1))","v":""},null,null,null,null,null,null,null,null,null," ",null,0,null,null,0]
[{"$f":"IF(B191=\"\",\"\",IF(MOD(ROW(A187),1),\"\",COUNT(A$4:A190)+1))","v":""},null,null,null,null,null,null,null,null,null," ",null,0,null,null,0]
[{"$f":"IF(B192=\"\",\"\",IF(MOD(ROW(A188),1),\"\",COUNT(A$4:A191)+1))","v":""},null,null,null,null,null,null,null,null,null," ",null,0,null,null,0]
[{"$f":"IF(B193=\"\",\"\",IF(MOD(ROW(A189),1),\"\",COUNT(A$4:A192)+1))","v":""},null,null,null,null,null,null,null,null,null," ",null,0,null,null,0]
[{"$f":"IF(B194=\"\",\"\",IF(MOD(ROW(A190),1),\"\",COUNT(A$4:A193)+1))","v":""},null,null,null,null,null,null,null,null,null," ",null,0,null,null,0]
[{"$f":"IF(B195=\"\",\"\",IF(MOD(ROW(A191),1),\"\",COUNT(A$4:A194)+1))","v":""},null,null,null,null,null,null,null,null,null," ",null,0,null,null,0]
[{"$f":"IF(B196=\"\",\"\",IF(MOD(ROW(A192),1),\"\",COUNT(A$4:A195)+1))","v":""},null,null,null,null,null,null,null,null,null," ",null,0,null,null,0]
[{"$f":"IF(B197=\"\",\"\",IF(MOD(ROW(A193),1),\"\",COUNT(A$4:A196)+1))","v":""},null,null,null,null,null,null,null,null,null," ",null,0,null,null,0]
[{"$f":"IF(B198=\"\",\"\",IF(MOD(ROW(A194),1),\"\",COUNT(A$4:A197)+1))","v":""},null,null,null,null,null,null,null,null,null," ",null,0,null,null,0]
[{"$f":"IF(B199=\"\",\"\",IF(MOD(ROW(A195),1),\"\",COUNT(A$4:A198)+1))","v":""},null,null,null,null,null,null,null,null,null," ",null,0,null,null,0]
[{"$f":"IF(B200=\"\",\"\",IF(MOD(ROW(A196),1),\"\",COUNT(A$4:A199)+1))","v":""},null,null,null,null,null,null,null,null,null," ",null,0,null,null,0]
[{"$f":"IF(B201=\"\",\"\",IF(MOD(ROW(A197),1),\"\",COUNT(A$4:A200)+1))","v":""},null,null,null,null,null,null,null,null,null," ",null,0,null,null,0]
[{"$f":"IF(B202=\"\",\"\",IF(MOD(ROW(A198),1),\"\",COUNT(A$4:A201)+1))","v":""},null,null,null,null,null,null,null,null,null," ",null,0,null,null,0]
[{"$f":"IF(B203=\"\",\"\",IF(MOD(ROW(A199),1),\"\",COUNT(A$4:A202)+1))","v":""},null,null,null,null,null,null,null,null,null," ",null,0,null,null,0]
[{"$f":"IF(B204=\"\",\"\",IF(MOD(ROW(A200),1),\"\",COUNT(A$4:A203)+1))","v":""},null,null,null,null,null,null,null,null,null," ",null,0,null,null,0]
[{"$f":"IF(B205=\"\",\"\",IF(MOD(ROW(A201),1),\"\",COUNT(A$4:A204)+1))","v":""},null,null,null,null,null,null,null,null,null," ",null,0,null,null,0]
[{"$f":"IF(B206=\"\",\"\",IF(MOD(ROW(A202),1),\"\",COUNT(A$4:A205)+1))","v":""},null,null,null,null,null,null,null,null,null," ",null,0,null,null,0]
[{"$f":"IF(B207=\"\",\"\",IF(MOD(ROW(A203),1),\"\",COUNT(A$4:A206)+1))","v":""},null,null,null,null,null,null,null,null,null," ",null,0,null,null,0]
[{"$f":"IF(B208=\"\",\"\",IF(MOD(ROW(A204),1),\"\",COUNT(A$4:A207)+1))","v":""},null,null,null,null,null,null,null,null,null," ",null,0,null,null,0]
[{"$f":"IF(B209=\"\",\"\",IF(MOD(ROW(A205),1),\"\",COUNT(A$4:A208)+1))","v":""},null,null,null,null,null,null,null,null,null," ",null,0,null,null,0]
[{"$f":"IF(B210=\"\",\"\",IF(MOD(ROW(A206),1),\"\",COUNT(A$4:A209)+1))","v":""},null,null,null,null,null,null,null,null,null," ",null,0,null,null,0]
[{"$f":"IF(B211=\"\",\"\",IF(MOD(ROW(A207),1),\"\",COUNT(A$4:A210)+1))","v":""},null,null,null,null,null,null,null,null,null," ",null,0,null,null,0]
[{"$f":"IF(B212=\"\",\"\",IF(MOD(ROW(A208),1),\"\",COUNT(A$4:A211)+1))","v":""},null,null,null,null,null,null,null,null,null," ",null,0,null,null,0]
[{"$f":"IF(B213=\"\",\"\",IF(MOD(ROW(A209),1),\"\",COUNT(A$4:A212)+1))","v":""},null,null,null,null,null,null,null,null,null," ",null,0,null,null,0]
[{"$f":"IF(B214=\"\",\"\",IF(MOD(ROW(A210),1),\"\",COUNT(A$4:A213)+1))","v":""},null,null,null,null,null,null,null,null,null," ",null,0,null,null,0]
[{"$f":"IF(B215=\"\",\"\",IF(MOD(ROW(A211),1),\"\",COUNT(A$4:A214)+1))","v":""},null,null,null,null,null,null,null,null,null," ",null,0,null,null,0]
[{"$f":"IF(B216=\"\",\"\",IF(MOD(ROW(A212),1),\"\",COUNT(A$4:A215)+1))","v":""},null,null,null,null,null,null,null,null,null," ",null,0,null,null,0]
[{"$f":"IF(B217=\"\",\"\",IF(MOD(ROW(A213),1),\"\",COUNT(A$4:A216)+1))","v":""},null,null,null,null,null,null,null,null,null," ",null,0,null,null,0]
[{"$f":"IF(B218=\"\",\"\",IF(MOD(ROW(A214),1),\"\",COUNT(A$4:A217)+1))","v":""},null,null,null,null,null,null,null,null,null," ",null,0,null,null,0]
[{"$f":"IF(B219=\"\",\"\",IF(MOD(ROW(A215),1),\"\",COUNT(A$4:A218)+1))","v":""},null,null,null,null,null,null,null,null,null," ",null,0,null,null,0]
[{"$f":"IF(B220=\"\",\"\",IF(MOD(ROW(A216),1),\"\",COUNT(A$4:A219)+1))","v":""},null,null,null,null,null,null,null,null,null,{"$f":"IF(H220>0,(H220+I220)-(E220+F220),\" \")","v":" "},null,0,null,null,0]
[{"$f":"IF(B221=\"\",\"\",IF(MOD(ROW(A217),1),\"\",COUNT(A$4:A220)+1))","v":""},null,null,null,null,null,null,null,null,null," ",null,0,null,null,0]
[{"$f":"IF(B222=\"\",\"\",IF(MOD(ROW(A218),1),\"\",COUNT(A$4:A221)+1))","v":""},null,null,null,null,null,null,null,null,null," ",null,0,null,null,0]
[{"$f":"IF(B223=\"\",\"\",IF(MOD(ROW(A219),1),\"\",COUNT(A$4:A222)+1))","v":""},null,null,null,null,null,null,null,null,null," ",null,0,null,null,0]
[{"$f":"IF(B224=\"\",\"\",IF(MOD(ROW(A220),1),\"\",COUNT(A$4:A223)+1))","v":""},null,null,null,null,null,null,null,null,null," ",null,0,null,null,0]
[{"$f":"IF(B225=\"\",\"\",IF(MOD(ROW(A221),1),\"\",COUNT(A$4:A224)+1))","v":""},null,null,null,null,null,null,null,null,null," ",null,0,null,null,0]
[{"$f":"IF(B226=\"\",\"\",IF(MOD(ROW(A222),1),\"\",COUNT(A$4:A225)+1))","v":""},null,null,null,null,null,null,null,null,null," ",null,0,null,null,0]
[{"$f":"IF(B227=\"\",\"\",IF(MOD(ROW(A223),1),\"\",COUNT(A$4:A226)+1))","v":""},null,null,null,null,null,null,null,null,null," ",null,0,null,null,0]
[{"$f":"IF(B228=\"\",\"\",IF(MOD(ROW(A224),1),\"\",COUNT(A$4:A227)+1))","v":""},null,null,null,null,null,null,null,null,null," ",null,0,null,null,0]
[{"$f":"IF(B229=\"\",\"\",IF(MOD(ROW(A225),1),\"\",COUNT(A$4:A228)+1))","v":""},null,null,null,null,null,null,null,null,null," ",null,0,null,null,0]
[{"$f":"IF(B230=\"\",\"\",IF(MOD(ROW(A226),1),\"\",COUNT(A$4:A229)+1))","v":""},null,null,null,null,null,null,null,null,null," ",null,0,null,null,0]
[{"$f":"IF(B231=\"\",\"\",IF(MOD(ROW(A227),1),\"\",COUNT(A$4:A230)+1))","v":""},null,null,null,null,null,null,null,null,null," ",null,0,null,null,0]
[{"$f":"IF(B232=\"\",\"\",IF(MOD(ROW(A228),1),\"\",COUNT(A$4:A231)+1))","v":""},null,null,null,null,null,null,null,null,null," ",null,0,null,null,0]
[{"$f":"IF(B233=\"\",\"\",IF(MOD(ROW(A229),1),\"\",COUNT(A$4:A232)+1))","v":""},null,null,null,null,null,null,null,null,null," ",null,0,null,null,0]
[{"$f":"IF(B234=\"\",\"\",IF(MOD(ROW(A230),1),\"\",COUNT(A$4:A233)+1))","v":""},null,null,null,null,null,null,null,null,null," ",null,0,null,null,0]
[{"$f":"IF(B235=\"\",\"\",IF(MOD(ROW(A231),1),\"\",COUNT(A$4:A234)+1))","v":""},null,null,null,null,null,null,null,null,null," ",null,0,null,null,0]
[{"$f":"IF(B236=\"\",\"\",IF(MOD(ROW(A232),1),\"\",COUNT(A$4:A235)+1))","v":""},null,null,null,null,null,null,null,null,null," ",null,0,null,null,0]
[{"$f":"IF(B237=\"\",\"\",IF(MOD(ROW(A233),1),\"\",COUNT(A$4:A236)+1))","v":""},null,null,null,null,null,null,null,null,null," ",null,0,null,null,0]
[{"$f":"IF(B238=\"\",\"\",IF(MOD(ROW(A234),1),\"\",COUNT(A$4:A237)+1))","v":""},null,null,null,null,null,null,null,null,null," ",null,0,null,null,0]
[{"$f":"IF(B239=\"\",\"\",IF(MOD(ROW(A235),1),\"\",COUNT(A$4:A238)+1))","v":""},null,null,null,null,null,null,null,null,null," ",null,0,null,null,0]
[{"$f":"IF(B240=\"\",\"\",IF(MOD(ROW(A236),1),\"\",COUNT(A$4:A239)+1))","v":""},null,null,null,null,null,null,null,null,null," ",null,0,null,null,0]
[{"$f":"IF(B241=\"\",\"\",IF(MOD(ROW(A237),1),\"\",COUNT(A$4:A240)+1))","v":""},null,null,null,null,null,null,null,null,null," ",null,0,null,null,0]
[{"$f":"IF(B242=\"\",\"\",IF(MOD(ROW(A238),1),\"\",COUNT(A$4:A241)+1))","v":""},null,null,null,null,null,null,null,null,null," ",null,0,null,null,0]
[{"$f":"IF(B243=\"\",\"\",IF(MOD(ROW(A239),1),\"\",COUNT(A$4:A242)+1))","v":""},null,null,null,null,null,null,null,null,null," ",null,0,null,null,0]
[{"$f":"IF(B244=\"\",\"\",IF(MOD(ROW(A240),1),\"\",COUNT(A$4:A243)+1))","v":""},null,null,null,null,null,null,null,null,null," ",null,0,null,null,0]
[{"$f":"IF(B245=\"\",\"\",IF(MOD(ROW(A241),1),\"\",COUNT(A$4:A244)+1))","v":""},null,null,null,null,null,null,null,null,null," ",null,0,null,null,0]
[{"$f":"IF(B246=\"\",\"\",IF(MOD(ROW(A242),1),\"\",COUNT(A$4:A245)+1))","v":""},null,null,null,null,null,null,null,null,null," ",null,0,null,null,0]
[{"$f":"IF(B247=\"\",\"\",IF(MOD(ROW(A243),1),\"\",COUNT(A$4:A246)+1))","v":""},null,null,null,null,null,null,null,null,null," ",null,{"$f":"IF(J247>0,J247-G247,0)","v":0},null,null,{"$f":"IF(L247>0,L247,0)","v":0}]
[{"$f":"IF(B248=\"\",\"\",IF(MOD(ROW(A244),1),\"\",COUNT(A$4:A247)+1))","v":""},null,null,null,null,null,null,null,null,null," ",null,0,null,null,0]
[{"$f":"IF(B249=\"\",\"\",IF(MOD(ROW(A245),1),\"\",COUNT(A$4:A248)+1))","v":""},null,null,null,null,null,null,null,null,null," ",null,0,null,null,0]
[{"$f":"IF(B250=\"\",\"\",IF(MOD(ROW(A246),1),\"\",COUNT(A$4:A249)+1))","v":""},null,null,null,null,null,null,null,null,null," ",null,0,null,null,0]
[{"$f":"IF(B251=\"\",\"\",IF(MOD(ROW(A247),1),\"\",COUNT(A$4:A250)+1))","v":""},null,null,null,null,null,null,null,null,null," ",null,0,null,null,0]
[{"$f":"IF(B252=\"\",\"\",IF(MOD(ROW(A248),1),\"\",COUNT(A$4:A251)+1))","v":""},null,null,null,null,null,null,null,null,null," ",null,0,null,null,0]
[{"$f":"IF(B253=\"\",\"\",IF(MOD(ROW(A249),1),\"\",COUNT(A$4:A252)+1))","v":""},null,null,null,null,null,null,null,null,null," ",null,0,null,null,0]
[{"$f":"IF(B254=\"\",\"\",IF(MOD(ROW(A250),1),\"\",COUNT(A$4:A253)+1))","v":""},null,null,null,null,null,null,null,null,null," ",null,0,null,null,0]
[{"$f":"IF(B255=\"\",\"\",IF(MOD(ROW(A251),1),\"\",COUNT(A$4:A254)+1))","v":""},null,null,null,null,null,null,null,null,null," ",null,0,null,null,0]
[{"$f":"IF(B256=\"\",\"\",IF(MOD(ROW(A252),1),\"\",COUNT(A$4:A255)+1))","v":""},null,null,null,null,null,null,null,null,null," ",null,0,null,null,0]
[{"$f":"IF(B257=\"\",\"\",IF(MOD(ROW(A253),1),\"\",COUNT(A$4:A256)+1))","v":""},null,null,null,null,null,null,null,null,null," ",null,0,null,null,0]
[{"$f":"IF(B258=\"\",\"\",IF(MOD(ROW(A254),1),\"\",COUNT(A$4:A257)+1))","v":""},null,null,null,null,null,null,null,null,null," ",null,0,null,null,0]
[{"$f":"IF(B259=\"\",\"\",IF(MOD(ROW(A255),1),\"\",COUNT(A$4:A258)+1))","v":""},null,null,null,null,null,null,null,null,null," ",null,0,null,null,0]
[{"$f":"IF(B260=\"\",\"\",IF(MOD(ROW(A256),1),\"\",COUNT(A$4:A259)+1))","v":""},null,null,null,null,null,null,null,null,null," ",null,0,null,null,0]
[{"$f":"IF(B261=\"\",\"\",IF(MOD(ROW(A257),1),\"\",COUNT(A$4:A260)+1))","v":""},null,null,null,null,null,null,null,null,null," ",null,0,null,null,0]
[{"$f":"IF(B262=\"\",\"\",IF(MOD(ROW(A258),1),\"\",COUNT(A$4:A261)+1))","v":""},null,null,null,null,null,null,null,null,null," ",null,0,null,null,0]
[{"$f":"IF(B263=\"\",\"\",IF(MOD(ROW(A259),1),\"\",COUNT(A$4:A262)+1))","v":""},null,null,null,null,null,null,null,null,null," ",null,0,null,null,0]
[{"$f":"IF(B264=\"\",\"\",IF(MOD(ROW(A260),1),\"\",COUNT(A$4:A263)+1))","v":""},null,null,null,null,null,null,null,null,null," ",null,0,null,null,0]
[{"$f":"IF(B265=\"\",\"\",IF(MOD(ROW(A261),1),\"\",COUNT(A$4:A264)+1))","v":""},null,null,null,null,null,null,null,null,null," ",null,0,null,null,0]
[{"$f":"IF(B266=\"\",\"\",IF(MOD(ROW(A262),1),\"\",COUNT(A$4:A265)+1))","v":""},null,null,null,null,null,null,null,null,null," ",null,0,null,null,0]
[{"$f":"IF(B267=\"\",\"\",IF(MOD(ROW(A263),1),\"\",COUNT(A$4:A266)+1))","v":""},null,null,null,null,null,null,null,null,null," ",null,0,null,null,0]
[{"$f":"IF(B268=\"\",\"\",IF(MOD(ROW(A264),1),\"\",COUNT(A$4:A267)+1))","v":""},null,null,null,null,null,null,null,null,null," ",null,0,null,null,0]
[{"$f":"IF(B269=\"\",\"\",IF(MOD(ROW(A265),1),\"\",COUNT(A$4:A268)+1))","v":""},null,null,null,null,null,null,null,null,null," ",null,0,null,null,0]
[{"$f":"IF(B270=\"\",\"\",IF(MOD(ROW(A266),1),\"\",COUNT(A$4:A269)+1))","v":""},null,null,null,null,null,null,null,null,null," ",null,0,null,null,0]
[{"$f":"IF(B271=\"\",\"\",IF(MOD(ROW(A267),1),\"\",COUNT(A$4:A270)+1))","v":""},null,null,null,null,null,null,null,null,null," ",null,0,null,null,0]
[{"$f":"IF(B272=\"\",\"\",IF(MOD(ROW(A268),1),\"\",COUNT(A$4:A271)+1))","v":""},null,null,null,null,null,null,null,null,null," ",null,0,null,null,0]
[{"$f":"IF(B273=\"\",\"\",IF(MOD(ROW(A269),1),\"\",COUNT(A$4:A272)+1))","v":""},null,null,null,null,null,null,null,null,null," ",null,0,null,null,0]
[{"$f":"IF(B274=\"\",\"\",IF(MOD(ROW(A270),1),\"\",COUNT(A$4:A273)+1))","v":""},null,null,null,null,null,null,null,null,null," ",null,0,null,null,0]
[{"$f":"IF(B275=\"\",\"\",IF(MOD(ROW(A271),1),\"\",COUNT(A$4:A274)+1))","v":""},null,null,null,null,null,null,null,null,null," ",null,0,null,null,0]
[{"$f":"IF(B276=\"\",\"\",IF(MOD(ROW(A272),1),\"\",COUNT(A$4:A275)+1))","v":""},null,null,null,null,null,null,null,null,null," ",null,0,null,null,0]
[{"$f":"IF(B277=\"\",\"\",IF(MOD(ROW(A273),1),\"\",COUNT(A$4:A276)+1))","v":""},null,null,null,null,null,null,null,null,null," ",null,0,null,null,0]
[{"$f":"IF(B278=\"\",\"\",IF(MOD(ROW(A274),1),\"\",COUNT(A$4:A277)+1))","v":""},null,null,null,null,null,null,null,null,null," ",null,0,null,null,0]
[{"$f":"IF(B279=\"\",\"\",IF(MOD(ROW(A275),1),\"\",COUNT(A$4:A278)+1))","v":""},null,null,null,null,null,null,null,null,null," ",null,0,null,null,0]
[{"$f":"IF(B280=\"\",\"\",IF(MOD(ROW(A276),1),\"\",COUNT(A$4:A279)+1))","v":""},null,null,null,null,null,null,null,null,null," ",null,0,null,null,0]
[{"$f":"IF(B281=\"\",\"\",IF(MOD(ROW(A277),1),\"\",COUNT(A$4:A280)+1))","v":""},null,null,null,null,null,null,null,null,null," ",null,0,null,null,0]
[{"$f":"IF(B282=\"\",\"\",IF(MOD(ROW(A278),1),\"\",COUNT(A$4:A281)+1))","v":""},null,null,null,null,null,null,null,null,null," ",null,0,null,null,0]
[{"$f":"IF(B283=\"\",\"\",IF(MOD(ROW(A279),1),\"\",COUNT(A$4:A282)+1))","v":""},null,null,null,null,null,null,null,null,null," ",null,0,null,null,0]
[{"$f":"IF(B284=\"\",\"\",IF(MOD(ROW(A280),1),\"\",COUNT(A$4:A283)+1))","v":""},null,null,null,null,null,null,null,null,null,{"$f":"IF(H284>0,(H284+I284)-(E284+F284),\" \")","v":" "},null,0,null,null,0]
[{"$f":"IF(B285=\"\",\"\",IF(MOD(ROW(A281),1),\"\",COUNT(A$4:A284)+1))","v":""},null,null,null,null,null,null,null,null,null," ",null,0,null,null,0]
[{"$f":"IF(B286=\"\",\"\",IF(MOD(ROW(A282),1),\"\",COUNT(A$4:A285)+1))","v":""},null,null,null,null,null,null,null,null,null," ",null,0,null,null,0]
[{"$f":"IF(B287=\"\",\"\",IF(MOD(ROW(A283),1),\"\",COUNT(A$4:A286)+1))","v":""},null,null,null,null,null,null,null,null,null," ",null,0,null,null,0]
[{"$f":"IF(B288=\"\",\"\",IF(MOD(ROW(A284),1),\"\",COUNT(A$4:A287)+1))","v":""},null,null,null,null,null,null,null,null,null," ",null,0,null,null,0]
[{"$f":"IF(B289=\"\",\"\",IF(MOD(ROW(A285),1),\"\",COUNT(A$4:A288)+1))","v":""},null,null,null,null,null,null,null,null,null," ",null,0,null,null,0]
[{"$f":"IF(B290=\"\",\"\",IF(MOD(ROW(A286),1),\"\",COUNT(A$4:A289)+1))","v":""},null,null,null,null,null,null,null,null,null," ",null,0,null,null,0]
[{"$f":"IF(B291=\"\",\"\",IF(MOD(ROW(A287),1),\"\",COUNT(A$4:A290)+1))","v":""},null,null,null,null,null,null,null,null,null," ",null,0,null,null,0]
[{"$f":"IF(B292=\"\",\"\",IF(MOD(ROW(A288),1),\"\",COUNT(A$4:A291)+1))","v":""},null,null,null,null,null,null,null,null,null," ",null,0,null,null,0]
[{"$f":"IF(B293=\"\",\"\",IF(MOD(ROW(A289),1),\"\",COUNT(A$4:A292)+1))","v":""},null,null,null,null,null,null,null,null,null," ",null,0,null,null,0]
[{"$f":"IF(B294=\"\",\"\",IF(MOD(ROW(A290),1),\"\",COUNT(A$4:A293)+1))","v":""},null,null,null,null,null,null,null,null,null," ",null,0,null,null,0]
[{"$f":"IF(B295=\"\",\"\",IF(MOD(ROW(A291),1),\"\",COUNT(A$4:A294)+1))","v":""},null,null,null,null,null,null,null,null,null," ",null,0,null,null,0]
[{"$f":"IF(B296=\"\",\"\",IF(MOD(ROW(A292),1),\"\",COUNT(A$4:A295)+1))","v":""},null,null,null,null,null,null,null,null,null," ",null,0,null,null,0]
[{"$f":"IF(B297=\"\",\"\",IF(MOD(ROW(A293),1),\"\",COUNT(A$4:A296)+1))","v":""},null,null,null,null,null,null,null,null,null," ",null,0,null,null,0]
[{"$f":"IF(B298=\"\",\"\",IF(MOD(ROW(A294),1),\"\",COUNT(A$4:A297)+1))","v":""},null,null,null,null,null,null,null,null,null," ",null,0,null,null,0]
[{"$f":"IF(B299=\"\",\"\",IF(MOD(ROW(A295),1),\"\",COUNT(A$4:A298)+1))","v":""},null,null,null,null,null,null,null,null,null," ",null,0,null,null,0]
[{"$f":"IF(B300=\"\",\"\",IF(MOD(ROW(A296),1),\"\",COUNT(A$4:A299)+1))","v":""},null,null,null,null,null,null,null,null,null," ",null,0,null,null,0]
[{"$f":"IF(B301=\"\",\"\",IF(MOD(ROW(A297),1),\"\",COUNT(A$4:A300)+1))","v":""},null,null,null,null,null,null,null,null,null," ",null,0,null,null,0]
[{"$f":"IF(B302=\"\",\"\",IF(MOD(ROW(A298),1),\"\",COUNT(A$4:A301)+1))","v":""},null,null,null,null,null,null,null,null,null," ",null,0,null,null,0]
[{"$f":"IF(B303=\"\",\"\",IF(MOD(ROW(A299),1),\"\",COUNT(A$4:A302)+1))","v":""},null,null,null,null,null,null,null,null,null," ",null,0,null,null,0]
[{"$f":"IF(B304=\"\",\"\",IF(MOD(ROW(A300),1),\"\",COUNT(A$4:A303)+1))","v":""},null,null,null,null,null,null,null,null,null," ",null,0,null,null,0]
[{"$f":"IF(B305=\"\",\"\",IF(MOD(ROW(A301),1),\"\",COUNT(A$4:A304)+1))","v":""},null,null,null,null,null,null,null,null,null," ",null,0,null,null,0]
[{"$f":"IF(B306=\"\",\"\",IF(MOD(ROW(A302),1),\"\",COUNT(A$4:A305)+1))","v":""},null,null,null,null,null,null,null,null,null," ",null,0,null,null,0]
[{"$f":"IF(B307=\"\",\"\",IF(MOD(ROW(A303),1),\"\",COUNT(A$4:A306)+1))","v":""},null,null,null,null,null,null,null,null,null," ",null,0,null,null,0]
[{"$f":"IF(B308=\"\",\"\",IF(MOD(ROW(A304),1),\"\",COUNT(A$4:A307)+1))","v":""},null,null,null,null,null,null,null,null,null," ",null,0,null,null,0]
[{"$f":"IF(B309=\"\",\"\",IF(MOD(ROW(A305),1),\"\",COUNT(A$4:A308)+1))","v":""},null,null,null,null,null,null,null,null,null," ",null,0,null,null,0]
[{"$f":"IF(B310=\"\",\"\",IF(MOD(ROW(A306),1),\"\",COUNT(A$4:A309)+1))","v":""},null,null,null,null,null,null,null,null,null," ",null,0,null,null,0]
[{"$f":"IF(B311=\"\",\"\",IF(MOD(ROW(A307),1),\"\",COUNT(A$4:A310)+1))","v":""},null,null,null,null,null,null,null,null,null," ",null,{"$f":"IF(J311>0,J311-G311,0)","v":0},null,null,{"$f":"IF(L311>0,L311,0)","v":0}]
[{"$f":"IF(B312=\"\",\"\",IF(MOD(ROW(A308),1),\"\",COUNT(A$4:A311)+1))","v":""},null,null,null,null,null,null,null,null,null," ",null,0,null,null,0]
[{"$f":"IF(B313=\"\",\"\",IF(MOD(ROW(A309),1),\"\",COUNT(A$4:A312)+1))","v":""},null,null,null,null,null,null,null,null,null," ",null,0,null,null,0]
[{"$f":"IF(B314=\"\",\"\",IF(MOD(ROW(A310),1),\"\",COUNT(A$4:A313)+1))","v":""},null,null,null,null,null,null,null,null,null," ",null,0,null,null,0]
[{"$f":"IF(B315=\"\",\"\",IF(MOD(ROW(A311),1),\"\",COUNT(A$4:A314)+1))","v":""},null,null,null,null,null,null,null,null,null," ",null,0,null,null,0]
[{"$f":"IF(B316=\"\",\"\",IF(MOD(ROW(A312),1),\"\",COUNT(A$4:A315)+1))","v":""},null,null,null,null,null,null,null,null,null," ",null,0,null,null,0]
[{"$f":"IF(B317=\"\",\"\",IF(MOD(ROW(A313),1),\"\",COUNT(A$4:A316)+1))","v":""},null,null,null,null,null,null,null,null,null," ",null,0,null,null,0]
[{"$f":"IF(B318=\"\",\"\",IF(MOD(ROW(A314),1),\"\",COUNT(A$4:A317)+1))","v":""},null,null,null,null,null,null,null,null,null," ",null,0,null,null,0]
[{"$f":"IF(B319=\"\",\"\",IF(MOD(ROW(A315),1),\"\",COUNT(A$4:A318)+1))","v":""},null,null,null,null,null,null,null,null,null," ",null,0,null,null,0]
[{"$f":"IF(B320=\"\",\"\",IF(MOD(ROW(A316),1),\"\",COUNT(A$4:A319)+1))","v":""},null,null,null,null,null,null,null,null,null," ",null,0,null,null,0]
[{"$f":"IF(B321=\"\",\"\",IF(MOD(ROW(A317),1),\"\",COUNT(A$4:A320)+1))","v":""},null,null,null,null,null,null,null,null,null," ",null,0,null,null,0]
[{"$f":"IF(B322=\"\",\"\",IF(MOD(ROW(A318),1),\"\",COUNT(A$4:A321)+1))","v":""},null,null,null,null,null,null,null,null,null," ",null,0,null,null,0]
[{"$f":"IF(B323=\"\",\"\",IF(MOD(ROW(A319),1),\"\",COUNT(A$4:A322)+1))","v":""},null,null,null,null,null,null,null,null,null," ",null,0,null,null,0]
[{"$f":"IF(B324=\"\",\"\",IF(MOD(ROW(A320),1),\"\",COUNT(A$4:A323)+1))","v":""},null,null,null,null,null,null,null,null,null," ",null,0,null,null,0]
[{"$f":"IF(B325=\"\",\"\",IF(MOD(ROW(A321),1),\"\",COUNT(A$4:A324)+1))","v":""},null,null,null,null,null,null,null,null,null," ",null,0,null,null,0]
[{"$f":"IF(B326=\"\",\"\",IF(MOD(ROW(A322),1),\"\",COUNT(A$4:A325)+1))","v":""},null,null,null,null,null,null,null,null,null," ",null,0,null,null,0]
[{"$f":"IF(B327=\"\",\"\",IF(MOD(ROW(A323),1),\"\",COUNT(A$4:A326)+1))","v":""},null,null,null,null,null,null,null,null,null," ",null,0,null,null,0]
[{"$f":"IF(B328=\"\",\"\",IF(MOD(ROW(A324),1),\"\",COUNT(A$4:A327)+1))","v":""},null,null,null,null,null,null,null,null,null," ",null,0,null,null,0]
[{"$f":"IF(B329=\"\",\"\",IF(MOD(ROW(A325),1),\"\",COUNT(A$4:A328)+1))","v":""},null,null,null,null,null,null,null,null,null," ",null,0,null,null,0]
[{"$f":"IF(B330=\"\",\"\",IF(MOD(ROW(A326),1),\"\",COUNT(A$4:A329)+1))","v":""},null,null,null,null,null,null,null,null,null," ",null,0,null,null,0]
[{"$f":"IF(B331=\"\",\"\",IF(MOD(ROW(A327),1),\"\",COUNT(A$4:A330)+1))","v":""},null,null,null,null,null,null,null,null,null," ",null,0,null,null,0]
[{"$f":"IF(B332=\"\",\"\",IF(MOD(ROW(A328),1),\"\",COUNT(A$4:A331)+1))","v":""},null,null,null,null,null,null,null,null,null," ",null,0,null,null,0]
[{"$f":"IF(B333=\"\",\"\",IF(MOD(ROW(A329),1),\"\",COUNT(A$4:A332)+1))","v":""},null,null,null,null,null,null,null,null,null," ",null,0,null,null,0]
[{"$f":"IF(B334=\"\",\"\",IF(MOD(ROW(A330),1),\"\",COUNT(A$4:A333)+1))","v":""},null,null,null,null,null,null,null,null,null," ",null,0,null,null,0]
[{"$f":"IF(B335=\"\",\"\",IF(MOD(ROW(A331),1),\"\",COUNT(A$4:A334)+1))","v":""},null,null,null,null,null,null,null,null,null," ",null,0,null,null,0]
[{"$f":"IF(B336=\"\",\"\",IF(MOD(ROW(A332),1),\"\",COUNT(A$4:A335)+1))","v":""},null,null,null,null,null,null,null,null,null," ",null,0,null,null,0]
[{"$f":"IF(B337=\"\",\"\",IF(MOD(ROW(A333),1),\"\",COUNT(A$4:A336)+1))","v":""},null,null,null,null,null,null,null,null,null," ",null,0,null,null,0]
[{"$f":"IF(B338=\"\",\"\",IF(MOD(ROW(A334),1),\"\",COUNT(A$4:A337)+1))","v":""},null,null,null,null,null,null,null,null,null," ",null,0,null,null,0]
[{"$f":"IF(B339=\"\",\"\",IF(MOD(ROW(A335),1),\"\",COUNT(A$4:A338)+1))","v":""},null,null,null,null,null,null,null,null,null," ",null,0,null,null,0]
[{"$f":"IF(B340=\"\",\"\",IF(MOD(ROW(A336),1),\"\",COUNT(A$4:A339)+1))","v":""},null,null,null,null,null,null,null,null,null," ",null,0,null,null,0]
[{"$f":"IF(B341=\"\",\"\",IF(MOD(ROW(A337),1),\"\",COUNT(A$4:A340)+1))","v":""},null,null,null,null,null,null,null,null,null," ",null,0,null,null,0]
[{"$f":"IF(B342=\"\",\"\",IF(MOD(ROW(A338),1),\"\",COUNT(A$4:A341)+1))","v":""},null,null,null,null,null,null,null,null,null," ",null,0,null,null,0]
[{"$f":"IF(B343=\"\",\"\",IF(MOD(ROW(A339),1),\"\",COUNT(A$4:A342)+1))","v":""},null,null,null,null,null,null,null,null,null," ",null,0,null,null,0]
[{"$f":"IF(B344=\"\",\"\",IF(MOD(ROW(A340),1),\"\",COUNT(A$4:A343)+1))","v":""},null,null,null,null,null,null,null,null,null," ",null,0,null,null,0]
[{"$f":"IF(B345=\"\",\"\",IF(MOD(ROW(A341),1),\"\",COUNT(A$4:A344)+1))","v":""},null,null,null,null,null,null,null,null,null," ",null,0,null,null,0]
[{"$f":"IF(B346=\"\",\"\",IF(MOD(ROW(A342),1),\"\",COUNT(A$4:A345)+1))","v":""},null,null,null,null,null,null,null,null,null," ",null,0,null,null,0]
[{"$f":"IF(B347=\"\",\"\",IF(MOD(ROW(A343),1),\"\",COUNT(A$4:A346)+1))","v":""},null,null,null,null,null,null,null,null,null," ",null,0,null,null,0]
[{"$f":"IF(B348=\"\",\"\",IF(MOD(ROW(A344),1),\"\",COUNT(A$4:A347)+1))","v":""},null,null,null,null,null,null,null,null,null,{"$f":"IF(H348>0,(H348+I348)-(E348+F348),\" \")","v":" "},null,0,null,null,0]
[{"$f":"IF(B349=\"\",\"\",IF(MOD(ROW(A345),1),\"\",COUNT(A$4:A348)+1))","v":""},null,null,null,null,null,null,null,null,null," ",null,0,null,null,0]
[{"$f":"IF(B350=\"\",\"\",IF(MOD(ROW(A346),1),\"\",COUNT(A$4:A349)+1))","v":""},null,null,null,null,null,null,null,null,null," ",null,0,null,null,0]
[{"$f":"IF(B351=\"\",\"\",IF(MOD(ROW(A347),1),\"\",COUNT(A$4:A350)+1))","v":""},null,null,null,null,null,null,null,null,null," ",null,0,null,null,0]
[{"$f":"IF(B352=\"\",\"\",IF(MOD(ROW(A348),1),\"\",COUNT(A$4:A351)+1))","v":""},null,null,null,null,null,null,null,null,null," ",null,0,null,null,0]
[{"$f":"IF(B353=\"\",\"\",IF(MOD(ROW(A349),1),\"\",COUNT(A$4:A352)+1))","v":""},null,null,null,null,null,null,null,null,null," ",null,0,null,null,0]
[{"$f":"IF(B354=\"\",\"\",IF(MOD(ROW(A350),1),\"\",COUNT(A$4:A353)+1))","v":""},null,null,null,null,null,null,null,null,null," ",null,0,null,null,0]
[{"$f":"IF(B355=\"\",\"\",IF(MOD(ROW(A351),1),\"\",COUNT(A$4:A354)+1))","v":""},null,null,null,null,null,null,null,null,null," ",null,0,null,null,0]
[{"$f":"IF(B356=\"\",\"\",IF(MOD(ROW(A352),1),\"\",COUNT(A$4:A355)+1))","v":""},null,null,null,null,null,null,null,null,null," ",null,0,null,null,0]
[{"$f":"IF(B357=\"\",\"\",IF(MOD(ROW(A353),1),\"\",COUNT(A$4:A356)+1))","v":""},null,null,null,null,null,null,null,null,null," ",null,0,null,null,0]
[{"$f":"IF(B358=\"\",\"\",IF(MOD(ROW(A354),1),\"\",COUNT(A$4:A357)+1))","v":""},null,null,null,null,null,null,null,null,null," ",null,0,null,null,0]
[{"$f":"IF(B359=\"\",\"\",IF(MOD(ROW(A355),1),\"\",COUNT(A$4:A358)+1))","v":""},null,null,null,null,null,null,null,null,null," ",null,0,null,null,0]
[{"$f":"IF(B360=\"\",\"\",IF(MOD(ROW(A356),1),\"\",COUNT(A$4:A359)+1))","v":""},null,null,null,null,null,null,null,null,null," ",null,0,null,null,0]
[{"$f":"IF(B361=\"\",\"\",IF(MOD(ROW(A357),1),\"\",COUNT(A$4:A360)+1))","v":""},null,null,null,null,null,null,null,null,null," ",null,0,null,null,0]
[{"$f":"IF(B362=\"\",\"\",IF(MOD(ROW(A358),1),\"\",COUNT(A$4:A361)+1))","v":""},null,null,null,null,null,null,null,null,null," ",null,0,null,null,0]
[{"$f":"IF(B363=\"\",\"\",IF(MOD(ROW(A359),1),\"\",COUNT(A$4:A362)+1))","v":""},null,null,null,null,null,null,null,null,null," ",null,0,null,null,0]
[{"$f":"IF(B364=\"\",\"\",IF(MOD(ROW(A360),1),\"\",COUNT(A$4:A363)+1))","v":""},null,null,null,null,null,null,null,null,null," ",null,0,null,null,0]
[{"$f":"IF(B365=\"\",\"\",IF(MOD(ROW(A361),1),\"\",COUNT(A$4:A364)+1))","v":""},null,null,null,null,null,null,null,null,null," ",null,0,null,null,0]
[{"$f":"IF(B366=\"\",\"\",IF(MOD(ROW(A362),1),\"\",COUNT(A$4:A365)+1))","v":""},null,null,null,null,null,null,null,null,null," ",null,0,null,null,0]
[{"$f":"IF(B367=\"\",\"\",IF(MOD(ROW(A363),1),\"\",COUNT(A$4:A366)+1))","v":""},null,null,null,null,null,null,null,null,null," ",null,0,null,null,0]
[{"$f":"IF(B368=\"\",\"\",IF(MOD(ROW(A364),1),\"\",COUNT(A$4:A367)+1))","v":""},null,null,null,null,null,null,null,null,null," ",null,0,null,null,0]
[{"$f":"IF(B369=\"\",\"\",IF(MOD(ROW(A365),1),\"\",COUNT(A$4:A368)+1))","v":""},null,null,null,null,null,null,null,null,null," ",null,0,null,null,0]
[{"$f":"IF(B370=\"\",\"\",IF(MOD(ROW(A366),1),\"\",COUNT(A$4:A369)+1))","v":""},null,null,null,null,null,null,null,null,null," ",null,0,null,null,0]
[{"$f":"IF(B371=\"\",\"\",IF(MOD(ROW(A367),1),\"\",COUNT(A$4:A370)+1))","v":""},null,null,null,null,null,null,null,null,null," ",null,0,null,null,0]
[{"$f":"IF(B372=\"\",\"\",IF(MOD(ROW(A368),1),\"\",COUNT(A$4:A371)+1))","v":""},null,null,null,null,null,null,null,null,null," ",null,0,null,null,0]
[{"$f":"IF(B373=\"\",\"\",IF(MOD(ROW(A369),1),\"\",COUNT(A$4:A372)+1))","v":""},null,null,null,null,null,null,null,null,null," ",null,0,null,null,0]
[{"$f":"IF(B374=\"\",\"\",IF(MOD(ROW(A370),1),\"\",COUNT(A$4:A373)+1))","v":""},null,null,null,null,null,null,null,null,null," ",null,0,null,null,0]
[{"$f":"IF(B375=\"\",\"\",IF(MOD(ROW(A371),1),\"\",COUNT(A$4:A374)+1))","v":""},null,null,null,null,null,null,null,null,null," ",null,{"$f":"IF(J375>0,J375-G375,0)","v":0},null,null,{"$f":"IF(L375>0,L375,0)","v":0}]
[{"$f":"IF(B376=\"\",\"\",IF(MOD(ROW(A372),1),\"\",COUNT(A$4:A375)+1))","v":""},null,null,null,null,null,null,null,null,null," ",null,0,null,null,0]
[{"$f":"IF(B377=\"\",\"\",IF(MOD(ROW(A373),1),\"\",COUNT(A$4:A376)+1))","v":""},null,null,null,null,null,null,null,null,null," ",null,0,null,null,0]
[{"$f":"IF(B378=\"\",\"\",IF(MOD(ROW(A374),1),\"\",COUNT(A$4:A377)+1))","v":""},null,null,null,null,null,null,null,null,null," ",null,0,null,null,0]
[{"$f":"IF(B379=\"\",\"\",IF(MOD(ROW(A375),1),\"\",COUNT(A$4:A378)+1))","v":""},null,null,null,null,null,null,null,null,null," ",null,0,null,null,0]
[{"$f":"IF(B380=\"\",\"\",IF(MOD(ROW(A376),1),\"\",COUNT(A$4:A379)+1))","v":""},null,null,null,null,null,null,null,null,null," ",null,0,null,null,0]
[{"$f":"IF(B381=\"\",\"\",IF(MOD(ROW(A377),1),\"\",COUNT(A$4:A380)+1))","v":""},null,null,null,null,null,null,null,null,null," ",null,0,null,null,0]
[{"$f":"IF(B382=\"\",\"\",IF(MOD(ROW(A378),1),\"\",COUNT(A$4:A381)+1))","v":""},null,null,null,null,null,null,null,null,null," ",null,0,null,null,0]
[{"$f":"IF(B383=\"\",\"\",IF(MOD(ROW(A379),1),\"\",COUNT(A$4:A382)+1))","v":""},null,null,null,null,null,null,null,null,null," ",null,0,null,null,0]
[{"$f":"IF(B384=\"\",\"\",IF(MOD(ROW(A380),1),\"\",COUNT(A$4:A383)+1))","v":""},null,null,null,null,null,null,null,null,null," ",null,0,null,null,0]
[{"$f":"IF(B385=\"\",\"\",IF(MOD(ROW(A381),1),\"\",COUNT(A$4:A384)+1))","v":""},null,null,null,null,null,null,null,null,null," ",null,0,null,null,0]
[{"$f":"IF(B386=\"\",\"\",IF(MOD(ROW(A382),1),\"\",COUNT(A$4:A385)+1))","v":""},null,null,null,null,null,null,null,null,null," ",null,0,null,null,0]
[{"$f":"IF(B387=\"\",\"\",IF(MOD(ROW(A383),1),\"\",COUNT(A$4:A386)+1))","v":""},null,null,null,null,null,null,null,null,null," ",null,0,null,null,0]
[{"$f":"IF(B388=\"\",\"\",IF(MOD(ROW(A384),1),\"\",COUNT(A$4:A387)+1))","v":""},null,null,null,null,null,null,null,null,null," ",null,0,null,null,0]
[{"$f":"IF(B389=\"\",\"\",IF(MOD(ROW(A385),1),\"\",COUNT(A$4:A388)+1))","v":""},null,null,null,null,null,null,null,null,null," ",null,0,null,null,0]
[{"$f":"IF(B390=\"\",\"\",IF(MOD(ROW(A386),1),\"\",COUNT(A$4:A389)+1))","v":""},null,null,null,null,null,null,null,null,null," ",null,0,null,null,0]
[{"$f":"IF(B391=\"\",\"\",IF(MOD(ROW(A387),1),\"\",COUNT(A$4:A390)+1))","v":""},null,null,null,null,null,null,null,null,null," ",null,0,null,null,0]
[{"$f":"IF(B392=\"\",\"\",IF(MOD(ROW(A388),1),\"\",COUNT(A$4:A391)+1))","v":""},null,null,null,null,null,null,null,null,null," ",null,0,null,null,0]
[{"$f":"IF(B393=\"\",\"\",IF(MOD(ROW(A389),1),\"\",COUNT(A$4:A392)+1))","v":""},null,null,null,null,null,null,null,null,null," ",null,0,null,null,0]
[{"$f":"IF(B394=\"\",\"\",IF(MOD(ROW(A390),1),\"\",COUNT(A$4:A393)+1))","v":""},null,null,null,null,null,null,null,null,null," ",null,0,null,null,0]
[{"$f":"IF(B395=\"\",\"\",IF(MOD(ROW(A391),1),\"\",COUNT(A$4:A394)+1))","v":""},null,null,null,null,null,null,null,null,null," ",null,0,null,null,0]
[{"$f":"IF(B396=\"\",\"\",IF(MOD(ROW(A392),1),\"\",COUNT(A$4:A395)+1))","v":""},null,null,null,null,null,null,null,null,null," ",null,0,null,null,0]
[{"$f":"IF(B397=\"\",\"\",IF(MOD(ROW(A393),1),\"\",COUNT(A$4:A396)+1))","v":""},null,null,null,null,null,null,null,null,null," ",null,0,null,null,0]
[{"$f":"IF(B398=\"\",\"\",IF(MOD(ROW(A394),1),\"\",COUNT(A$4:A397)+1))","v":""},null,null,null,null,null,null,null,null,null," ",null,0,null,null,0]
[{"$f":"IF(B399=\"\",\"\",IF(MOD(ROW(A395),1),\"\",COUNT(A$4:A398)+1))","v":""},null,null,null,null,null,null,null,null,null," ",null,0,null,null,0]
[{"$f":"IF(B400=\"\",\"\",IF(MOD(ROW(A396),1),\"\",COUNT(A$4:A399)+1))","v":""},null,null,null,null,null,null,null,null,null," ",null,0,null,null,0]
[{"$f":"IF(B401=\"\",\"\",IF(MOD(ROW(A397),1),\"\",COUNT(A$4:A400)+1))","v":""},null,null,null,null,null,null,null,null,null," ",null,0,null,null,0]
[{"$f":"IF(B402=\"\",\"\",IF(MOD(ROW(A398),1),\"\",COUNT(A$4:A401)+1))","v":""},null,null,null,null,null,null,null,null,null," ",null,0,null,null,0]
[{"$f":"IF(B403=\"\",\"\",IF(MOD(ROW(A399),1),\"\",COUNT(A$4:A402)+1))","v":""},null,null,null,null,null,null,null,null,null," ",null,0,null,null,0]
[{"$f":"IF(B404=\"\",\"\",IF(MOD(ROW(A400),1),\"\",COUNT(A$4:A403)+1))","v":""},null,null,null,null,null,null,null,null,null," ",null,0,null,null,0]
[{"$f":"IF(B405=\"\",\"\",IF(MOD(ROW(A401),1),\"\",COUNT(A$4:A404)+1))","v":""},null,null,null,null,null,null,null,null,null," ",null,0,null,null,0]
[{"$f":"IF(B406=\"\",\"\",IF(MOD(ROW(A402),1),\"\",COUNT(A$4:A405)+1))","v":""},null,null,null,null,null,null,null,null,null," ",null,0,null,null,0]
[{"$f":"IF(B407=\"\",\"\",IF(MOD(ROW(A403),1),\"\",COUNT(A$4:A406)+1))","v":""},null,null,null,null,null,null,null,null,null," ",null,0,null,null,0]
[{"$f":"IF(B408=\"\",\"\",IF(MOD(ROW(A404),1),\"\",COUNT(A$4:A407)+1))","v":""},null,null,null,null,null,null,null,null,null," ",null,0,null,null,0]
[{"$f":"IF(B409=\"\",\"\",IF(MOD(ROW(A405),1),\"\",COUNT(A$4:A408)+1))","v":""},null,null,null,null,null,null,null,null,null," ",null,0,null,null,0]
[{"$f":"IF(B410=\"\",\"\",IF(MOD(ROW(A406),1),\"\",COUNT(A$4:A409)+1))","v":""},null,null,null,null,null,null,null,null,null," ",null,0,null,null,0]
[{"$f":"IF(B411=\"\",\"\",IF(MOD(ROW(A407),1),\"\",COUNT(A$4:A410)+1))","v":""},null,null,null,null,null,null,null,null,null," ",null,0,null,null,0]
[{"$f":"IF(B412=\"\",\"\",IF(MOD(ROW(A408),1),\"\",COUNT(A$4:A411)+1))","v":""},null,null,null,null,null,null,null,null,null,{"$f":"IF(H412>0,(H412+I412)-(E412+F412),\" \")","v":" "},null,0,null,null,0]
[{"$f":"IF(B413=\"\",\"\",IF(MOD(ROW(A409),1),\"\",COUNT(A$4:A412)+1))","v":""},null,null,null,null,null,null,null,null,null," ",null,0,null,null,0]
[{"$f":"IF(B414=\"\",\"\",IF(MOD(ROW(A410),1),\"\",COUNT(A$4:A413)+1))","v":""},null,null,null,null,null,null,null,null,null," ",null,0,null,null,0]
[{"$f":"IF(B415=\"\",\"\",IF(MOD(ROW(A411),1),\"\",COUNT(A$4:A414)+1))","v":""},null,null,null,null,null,null,null,null,null," ",null,0,null,null,0]
[{"$f":"IF(B416=\"\",\"\",IF(MOD(ROW(A412),1),\"\",COUNT(A$4:A415)+1))","v":""},null,null,null,null,null,null,null,null,null," ",null,0,null,null,0]
[{"$f":"IF(B417=\"\",\"\",IF(MOD(ROW(A413),1),\"\",COUNT(A$4:A416)+1))","v":""},null,null,null,null,null,null,null,null,null," ",null,0,null,null,0]
[{"$f":"IF(B418=\"\",\"\",IF(MOD(ROW(A414),1),\"\",COUNT(A$4:A417)+1))","v":""},null,null,null,null,null,null,null,null,null," ",null,0,null,null,0]
[{"$f":"IF(B419=\"\",\"\",IF(MOD(ROW(A415),1),\"\",COUNT(A$4:A418)+1))","v":""},null,null,null,null,null,null,null,null,null," ",null,0,null,null,0]
[{"$f":"IF(B420=\"\",\"\",IF(MOD(ROW(A416),1),\"\",COUNT(A$4:A419)+1))","v":""},null,null,null,null,null,null,null,null,null," ",null,0,null,null,0]
[{"$f":"IF(B421=\"\",\"\",IF(MOD(ROW(A417),1),\"\",COUNT(A$4:A420)+1))","v":""},null,null,null,null,null,null,null,null,null," ",null,0,null,null,0]
[{"$f":"IF(B422=\"\",\"\",IF(MOD(ROW(A418),1),\"\",COUNT(A$4:A421)+1))","v":""},null,null,null,null,null,null,null,null,null," ",null,0,null,null,0]
[{"$f":"IF(B423=\"\",\"\",IF(MOD(ROW(A419),1),\"\",COUNT(A$4:A422)+1))","v":""},null,null,null,null,null,null,null,null,null," ",null,0,null,null,0]
[{"$f":"IF(B424=\"\",\"\",IF(MOD(ROW(A420),1),\"\",COUNT(A$4:A423)+1))","v":""},null,null,null,null,null,null,null,null,null," ",null,0,null,null,0]
[{"$f":"IF(B425=\"\",\"\",IF(MOD(ROW(A421),1),\"\",COUNT(A$4:A424)+1))","v":""},null,null,null,null,null,null,null,null,null," ",null,0,null,null,0]
[{"$f":"IF(B426=\"\",\"\",IF(MOD(ROW(A422),1),\"\",COUNT(A$4:A425)+1))","v":""},null,null,null,null,null,null,null,null,null," ",null,0,null,null,0]
[{"$f":"IF(B427=\"\",\"\",IF(MOD(ROW(A423),1),\"\",COUNT(A$4:A426)+1))","v":""},null,null,null,null,null,null,null,null,null," ",null,0,null,null,0]
[{"$f":"IF(B428=\"\",\"\",IF(MOD(ROW(A424),1),\"\",COUNT(A$4:A427)+1))","v":""},null,null,null,null,null,null,null,null,null," ",null,0,null,null,0]
[{"$f":"IF(B429=\"\",\"\",IF(MOD(ROW(A425),1),\"\",COUNT(A$4:A428)+1))","v":""},null,null,null,null,null,null,null,null,null," ",null,0,null,null,0]
[{"$f":"IF(B430=\"\",\"\",IF(MOD(ROW(A426),1),\"\",COUNT(A$4:A429)+1))","v":""},null,null,null,null,null,null,null,null,null," ",null,0,null,null,0]
[{"$f":"IF(B431=\"\",\"\",IF(MOD(ROW(A427),1),\"\",COUNT(A$4:A430)+1))","v":""},null,null,null,null,null,null,null,null,null," ",null,0,null,null,0]
[{"$f":"IF(B432=\"\",\"\",IF(MOD(ROW(A428),1),\"\",COUNT(A$4:A431)+1))","v":""},null,null,null,null,null,null,null,null,null," ",null,0,null,null,0]
[{"$f":"IF(B433=\"\",\"\",IF(MOD(ROW(A429),1),\"\",COUNT(A$4:A432)+1))","v":""},null,null,null,null,null,null,null,null,null," ",null,0,null,null,0]
[{"$f":"IF(B434=\"\",\"\",IF(MOD(ROW(A430),1),\"\",COUNT(A$4:A433)+1))","v":""},null,null,null,null,null,null,null,null,null," ",null,0,null,null,0]
[{"$f":"IF(B435=\"\",\"\",IF(MOD(ROW(A431),1),\"\",COUNT(A$4:A434)+1))","v":""},null,null,null,null,null,null,null,null,null," ",null,0,null,null,0]
[{"$f":"IF(B436=\"\",\"\",IF(MOD(ROW(A432),1),\"\",COUNT(A$4:A435)+1))","v":""},null,null,null,null,null,null,null,null,null," ",null,0,null,null,0]
[{"$f":"IF(B437=\"\",\"\",IF(MOD(ROW(A433),1),\"\",COUNT(A$4:A436)+1))","v":""},null,null,null,null,null,null,null,null,null," ",null,0,null,null,0]
[{"$f":"IF(B438=\"\",\"\",IF(MOD(ROW(A434),1),\"\",COUNT(A$4:A437)+1))","v":""},null,null,null,null,null,null,null,null,null," ",null,0,null,null,0]
[{"$f":"IF(B439=\"\",\"\",IF(MOD(ROW(A435),1),\"\",COUNT(A$4:A438)+1))","v":""},null,null,null,null,null,null,null,null,null," ",null,{"$f":"IF(J439>0,J439-G439,0)","v":0},null,null,{"$f":"IF(L439>0,L439,0)","v":0}]
[{"$f":"IF(B440=\"\",\"\",IF(MOD(ROW(A436),1),\"\",COUNT(A$4:A439)+1))","v":""},null,null,null,null,null,null,null,null,null," ",null,0,null,null,0]
[{"$f":"IF(B441=\"\",\"\",IF(MOD(ROW(A437),1),\"\",COUNT(A$4:A440)+1))","v":""},null,null,null,null,null,null,null,null,null," ",null,0,null,null,0]
[{"$f":"IF(B442=\"\",\"\",IF(MOD(ROW(A438),1),\"\",COUNT(A$4:A441)+1))","v":""},null,null,null,null,null,null,null,null,null," ",null,0,null,null,0]
[{"$f":"IF(B443=\"\",\"\",IF(MOD(ROW(A439),1),\"\",COUNT(A$4:A442)+1))","v":""},null,null,null,null,null,null,null,null,null," ",null,0,null,null,0]
[{"$f":"IF(B444=\"\",\"\",IF(MOD(ROW(A440),1),\"\",COUNT(A$4:A443)+1))","v":""},null,null,null,null,null,null,null,null,null," ",null,0,null,null,0]
[{"$f":"IF(B445=\"\",\"\",IF(MOD(ROW(A441),1),\"\",COUNT(A$4:A444)+1))","v":""},null,null,null,null,null,null,null,null,null," ",null,0,null,null,0]
[{"$f":"IF(B446=\"\",\"\",IF(MOD(ROW(A442),1),\"\",COUNT(A$4:A445)+1))","v":""},null,null,null,null,null,null,null,null,null," ",null,0,null,null,0]
[{"$f":"IF(B447=\"\",\"\",IF(MOD(ROW(A443),1),\"\",COUNT(A$4:A446)+1))","v":""},null,null,null,null,null,null,null,null,null," ",null,0,null,null,0]
[{"$f":"IF(B448=\"\",\"\",IF(MOD(ROW(A444),1),\"\",COUNT(A$4:A447)+1))","v":""},null,null,null,null,null,null,null,null,null," ",null,0,null,null,0]
[{"$f":"IF(B449=\"\",\"\",IF(MOD(ROW(A445),1),\"\",COUNT(A$4:A448)+1))","v":""},null,null,null,null,null,null,null,null,null," ",null,0,null,null,0]
[{"$f":"IF(B450=\"\",\"\",IF(MOD(ROW(A446),1),\"\",COUNT(A$4:A449)+1))","v":""},null,null,null,null,null,null,null,null,null," ",null,0,null,null,0]
[{"$f":"IF(B451=\"\",\"\",IF(MOD(ROW(A447),1),\"\",COUNT(A$4:A450)+1))","v":""},null,null,null,null,null,null,null,null,null," ",null,0,null,null,0]
[{"$f":"IF(B452=\"\",\"\",IF(MOD(ROW(A448),1),\"\",COUNT(A$4:A451)+1))","v":""},null,null,null,null,null,null,null,null,null," ",null,0,null,null,0]
[{"$f":"IF(B453=\"\",\"\",IF(MOD(ROW(A449),1),\"\",COUNT(A$4:A452)+1))","v":""},null,null,null,null,null,null,null,null,null," ",null,0,null,null,0]
[{"$f":"IF(B454=\"\",\"\",IF(MOD(ROW(A450),1),\"\",COUNT(A$4:A453)+1))","v":""},null,null,null,null,null,null,null,null,null," ",null,0,null,null,0]
[{"$f":"IF(B455=\"\",\"\",IF(MOD(ROW(A451),1),\"\",COUNT(A$4:A454)+1))","v":""},null,null,null,null,null,null,null,null,null," ",null,0,null,null,0]
[{"$f":"IF(B456=\"\",\"\",IF(MOD(ROW(A452),1),\"\",COUNT(A$4:A455)+1))","v":""},null,null,null,null,null,null,null,null,null," ",null,0,null,null,0]
[{"$f":"IF(B457=\"\",\"\",IF(MOD(ROW(A453),1),\"\",COUNT(A$4:A456)+1))","v":""},null,null,null,null,null,null,null,null,null," ",null,0,null,null,0]
[{"$f":"IF(B458=\"\",\"\",IF(MOD(ROW(A454),1),\"\",COUNT(A$4:A457)+1))","v":""},null,null,null,null,null,null,null,null,null," ",null,0,null,null,0]
[{"$f":"IF(B459=\"\",\"\",IF(MOD(ROW(A455),1),\"\",COUNT(A$4:A458)+1))","v":""},null,null,null,null,null,null,null,null,null," ",null,0,null,null,0]
[{"$f":"IF(B460=\"\",\"\",IF(MOD(ROW(A456),1),\"\",COUNT(A$4:A459)+1))","v":""},null,null,null,null,null,null,null,null,null," ",null,0,null,null,0]
[{"$f":"IF(B461=\"\",\"\",IF(MOD(ROW(A457),1),\"\",COUNT(A$4:A460)+1))","v":""},null,null,null,null,null,null,null,null,null," ",null,0,null,null,0]
[{"$f":"IF(B462=\"\",\"\",IF(MOD(ROW(A458),1),\"\",COUNT(A$4:A461)+1))","v":""},null,null,null,null,null,null,null,null,null," ",null,0,null,null,0]
[{"$f":"IF(B463=\"\",\"\",IF(MOD(ROW(A459),1),\"\",COUNT(A$4:A462)+1))","v":""},null,null,null,null,null,null,null,null,null," ",null,0,null,null,0]
[{"$f":"IF(B464=\"\",\"\",IF(MOD(ROW(A460),1),\"\",COUNT(A$4:A463)+1))","v":""},null,null,null,null,null,null,null,null,null," ",null,0,null,null,0]
[{"$f":"IF(B465=\"\",\"\",IF(MOD(ROW(A461),1),\"\",COUNT(A$4:A464)+1))","v":""},null,null,null,null,null,null,null,null,null," ",null,0,null,null,0]
[{"$f":"IF(B466=\"\",\"\",IF(MOD(ROW(A462),1),\"\",COUNT(A$4:A465)+1))","v":""},null,null,null,null,null,null,null,null,null," ",null,0,null,null,0]
[{"$f":"IF(B467=\"\",\"\",IF(MOD(ROW(A463),1),\"\",COUNT(A$4:A466)+1))","v":""},null,null,null,null,null,null,null,null,null," ",null,0,null,null,0]
[{"$f":"IF(B468=\"\",\"\",IF(MOD(ROW(A464),1),\"\",COUNT(A$4:A467)+1))","v":""},null,null,null,null,null,null,null,null,null," ",null,0,null,null,0]
[{"$f":"IF(B469=\"\",\"\",IF(MOD(ROW(A465),1),\"\",COUNT(A$4:A468)+1))","v":""},null,null,null,null,null,null,null,null,null," ",null,0,null,null,0]
[{"$f":"IF(B470=\"\",\"\",IF(MOD(ROW(A466),1),\"\",COUNT(A$4:A469)+1))","v":""},null,null,null,null,null,null,null,null,null," ",null,0,null,null,0]
[{"$f":"IF(B471=\"\",\"\",IF(MOD(ROW(A467),1),\"\",COUNT(A$4:A470)+1))","v":""},null,null,null,null,null,null,null,null,null," ",null,0,null,null,0]
[{"$f":"IF(B472=\"\",\"\",IF(MOD(ROW(A468),1),\"\",COUNT(A$4:A471)+1))","v":""},null,null,null,null,null,null,null,null,null," ",null,0,null,null,0]
[{"$f":"IF(B473=\"\",\"\",IF(MOD(ROW(A469),1),\"\",COUNT(A$4:A472)+1))","v":""},null,null,null,null,null,null,null,null,null," ",null,0,null,null,0]
[{"$f":"IF(B474=\"\",\"\",IF(MOD(ROW(A470),1),\"\",COUNT(A$4:A473)+1))","v":""},null,null,null,null,null,null,null,null,null," ",null,0,null,null,0]
[{"$f":"IF(B475=\"\",\"\",IF(MOD(ROW(A471),1),\"\",COUNT(A$4:A474)+1))","v":""},null,null,null,null,null,null,null,null,null," ",null,0,null,null,0]
[{"$f":"IF(B476=\"\",\"\",IF(MOD(ROW(A472),1),\"\",COUNT(A$4:A475)+1))","v":""},null,null,null,null,null,null,null,null,null,{"$f":"IF(H476>0,(H476+I476)-(E476+F476),\" \")","v":" "},null,0,null,null,0]
[{"$f":"IF(B477=\"\",\"\",IF(MOD(ROW(A473),1),\"\",COUNT(A$4:A476)+1))","v":""},null,null,null,null,null,null,null,null,null," ",null,0,null,null,0]
[{"$f":"IF(B478=\"\",\"\",IF(MOD(ROW(A474),1),\"\",COUNT(A$4:A477)+1))","v":""},null,null,null,null,null,null,null,null,null," ",null,0,null,null,0]
[{"$f":"IF(B479=\"\",\"\",IF(MOD(ROW(A475),1),\"\",COUNT(A$4:A478)+1))","v":""},null,null,null,null,null,null,null,null,null," ",null,0,null,null,0]
[{"$f":"IF(B480=\"\",\"\",IF(MOD(ROW(A476),1),\"\",COUNT(A$4:A479)+1))","v":""},null,null,null,null,null,null,null,null,null," ",null,0,null,null,0]
[{"$f":"IF(B481=\"\",\"\",IF(MOD(ROW(A477),1),\"\",COUNT(A$4:A480)+1))","v":""},null,null,null,null,null,null,null,null,null," ",null,0,null,null,0]
[{"$f":"IF(B482=\"\",\"\",IF(MOD(ROW(A478),1),\"\",COUNT(A$4:A481)+1))","v":""},null,null,null,null,null,null,null,null,null," ",null,0,null,null,0]
[{"$f":"IF(B483=\"\",\"\",IF(MOD(ROW(A479),1),\"\",COUNT(A$4:A482)+1))","v":""},null,null,null,null,null,null,null,null,null," ",null,0,null,null,0]
[{"$f":"IF(B484=\"\",\"\",IF(MOD(ROW(A480),1),\"\",COUNT(A$4:A483)+1))","v":""},null,null,null,null,null,null,null,null,null," ",null,0,null,null,0]
[{"$f":"IF(B485=\"\",\"\",IF(MOD(ROW(A481),1),\"\",COUNT(A$4:A484)+1))","v":""},null,null,null,null,null,null,null,null,null," ",null,0,null,null,0]
[{"$f":"IF(B486=\"\",\"\",IF(MOD(ROW(A482),1),\"\",COUNT(A$4:A485)+1))","v":""},null,null,null,null,null,null,null,null,null," ",null,0,null,null,0]
[{"$f":"IF(B487=\"\",\"\",IF(MOD(ROW(A483),1),\"\",COUNT(A$4:A486)+1))","v":""},null,null,null,null,null,null,null,null,null," ",null,0,null,null,0]
[{"$f":"IF(B488=\"\",\"\",IF(MOD(ROW(A484),1),\"\",COUNT(A$4:A487)+1))","v":""},null,null,null,null,null,null,null,null,null," ",null,0,null,null,0]
[{"$f":"IF(B489=\"\",\"\",IF(MOD(ROW(A485),1),\"\",COUNT(A$4:A488)+1))","v":""},null,null,null,null,null,null,null,null,null," ",null,0,null,null,0]
[{"$f":"IF(B490=\"\",\"\",IF(MOD(ROW(A486),1),\"\",COUNT(A$4:A489)+1))","v":""},null,null,null,null,null,null,null,null,null," ",null,0,null,null,0]
[{"$f":"IF(B491=\"\",\"\",IF(MOD(ROW(A487),1),\"\",COUNT(A$4:A490)+1))","v":""},null,null,null,null,null,null,null,null,null," ",null,0,null,null,0]
[{"$f":"IF(B492=\"\",\"\",IF(MOD(ROW(A488),1),\"\",COUNT(A$4:A491)+1))","v":""},null,null,null,null,null,null,null,null,null," ",null,0,null,null,0]
[{"$f":"IF(B493=\"\",\"\",IF(MOD(ROW(A489),1),\"\",COUNT(A$4:A492)+1))","v":""},null,null,null,null,null,null,null,null,null," ",null,0,null,null,0]
[{"$f":"IF(B494=\"\",\"\",IF(MOD(ROW(A490),1),\"\",COUNT(A$4:A493)+1))","v":""},null,null,null,null,null,null,null,null,null," ",null,0,null,null,0]
[{"$f":"IF(B495=\"\",\"\",IF(MOD(ROW(A491),1),\"\",COUNT(A$4:A494)+1))","v":""},null,null,null,null,null,null,null,null,null," ",null,0,null,null,0]
[{"$f":"IF(B496=\"\",\"\",IF(MOD(ROW(A492),1),\"\",COUNT(A$4:A495)+1))","v":""},null,null,null,null,null,null,null,null,null," ",null,0,null,null,0]
[{"$f":"IF(B497=\"\",\"\",IF(MOD(ROW(A493),1),\"\",COUNT(A$4:A496)+1))","v":""},null,null,null,null,null,null,null,null,null," ",null,0,null,null,0]
[{"$f":"IF(B498=\"\",\"\",IF(MOD(ROW(A494),1),\"\",COUNT(A$4:A497)+1))","v":""},null,null,null,null,null,null,null,null,null," ",null,0,null,null,0]
[{"$f":"IF(B499=\"\",\"\",IF(MOD(ROW(A495),1),\"\",COUNT(A$4:A498)+1))","v":""},null,null,null,null,null,null,null,null,null," ",null,0,null,null,0]
[{"$f":"IF(B500=\"\",\"\",IF(MOD(ROW(A496),1),\"\",COUNT(A$4:A499)+1))","v":""},null,null,null,null,null,null,null,null,null," ",null,0,null,null,0]
[{"$f":"IF(B501=\"\",\"\",IF(MOD(ROW(A497),1),\"\",COUNT(A$4:A500)+1))","v":""},null,null,null,null,null,null,null,null,null," ",null,0,null,null,0]
[{"$f":"IF(B502=\"\",\"\",IF(MOD(ROW(A498),1),\"\",COUNT(A$4:A501)+1))","v":""},null,null,null,null,null,null,null,null,null," ",null,0,null,null,0]
[{"$f":"IF(B503=\"\",\"\",IF(MOD(ROW(A499),1),\"\",COUNT(A$4:A502)+1))","v":""},null,null,null,null,null,null,null,null,null," ",null,{"$f":"IF(J503>0,J503-G503,0)","v":0},null,null,{"$f":"IF(L503>0,L503,0)","v":0}]
[{"$f":"IF(B504=\"\",\"\",IF(MOD(ROW(A500),1),\"\",COUNT(A$4:A503)+1))","v":""},null,null,null,null,null,null,null,null,null," ",null,0,null,null,0]
[{"$f":"IF(B505=\"\",\"\",IF(MOD(ROW(A501),1),\"\",COUNT(A$4:A504)+1))","v":""},null,null,null,null,null,null,null,null,null," ",null,0,null,null,0]
[{"$f":"IF(B506=\"\",\"\",IF(MOD(ROW(A502),1),\"\",COUNT(A$4:A505)+1))","v":""},null,null,null,null,null,null,null,null,null," ",null,0,null,null,0]
[{"$f":"IF(B507=\"\",\"\",IF(MOD(ROW(A503),1),\"\",COUNT(A$4:A506)+1))","v":""},null,null,null,null,null,null,null,null,null," ",null,0,null,null,0]
[{"$f":"IF(B508=\"\",\"\",IF(MOD(ROW(A504),1),\"\",COUNT(A$4:A507)+1))","v":""},null,null,null,null,null,null,null,null,null," ",null,0,null,null,0]
[{"$f":"IF(B509=\"\",\"\",IF(MOD(ROW(A505),1),\"\",COUNT(A$4:A508)+1))","v":""},null,null,null,null,null,null,null,null,null," ",null,0,null,null,0]
[{"$f":"IF(B510=\"\",\"\",IF(MOD(ROW(A506),1),\"\",COUNT(A$4:A509)+1))","v":""},null,null,null,null,null,null,null,null,null," ",null,0,null,null,0]
[{"$f":"IF(B511=\"\",\"\",IF(MOD(ROW(A507),1),\"\",COUNT(A$4:A510)+1))","v":""},null,null,null,null,null,null,null,null,null," ",null,0,null,null,0]
[{"$f":"IF(B512=\"\",\"\",IF(MOD(ROW(A508),1),\"\",COUNT(A$4:A511)+1))","v":""},null,null,null,null,null,null,null,null,null," ",null,0,null,null,0]
[{"$f":"IF(B513=\"\",\"\",IF(MOD(ROW(A509),1),\"\",COUNT(A$4:A512)+1))","v":""},null,null,null,null,null,null,null,null,null," ",null,0,null,null,0]
[{"$f":"IF(B514=\"\",\"\",IF(MOD(ROW(A510),1),\"\",COUNT(A$4:A513)+1))","v":""},null,null,null,null,null,null,null,null,null," ",null,0,null,null,0]
[{"$f":"IF(B515=\"\",\"\",IF(MOD(ROW(A511),1),\"\",COUNT(A$4:A514)+1))","v":""},null,null,null,null,null,null,null,null,null," ",null,0,null,null,0]
[{"$f":"IF(B516=\"\",\"\",IF(MOD(ROW(A512),1),\"\",COUNT(A$4:A515)+1))","v":""},null,null,null,null,null,null,null,null,null," ",null,0,null,null,0]
[{"$f":"IF(B517=\"\",\"\",IF(MOD(ROW(A513),1),\"\",COUNT(A$4:A516)+1))","v":""},null,null,null,null,null,null,null,null,null," ",null,0,null,null,0]
[{"$f":"IF(B518=\"\",\"\",IF(MOD(ROW(A514),1),\"\",COUNT(A$4:A517)+1))","v":""},null,null,null,null,null,null,null,null,null," ",null,0,null,null,0]
[{"$f":"IF(B519=\"\",\"\",IF(MOD(ROW(A515),1),\"\",COUNT(A$4:A518)+1))","v":""},null,null,null,null,null,null,null,null,null," ",null,0,null,null,0]
[{"$f":"IF(B520=\"\",\"\",IF(MOD(ROW(A516),1),\"\",COUNT(A$4:A519)+1))","v":""},null,null,null,null,null,null,null,null,null," ",null,0,null,null,0]
[{"$f":"IF(B521=\"\",\"\",IF(MOD(ROW(A517),1),\"\",COUNT(A$4:A520)+1))","v":""},null,null,null,null,null,null,null,null,null," ",null,0,null,null,0]
[{"$f":"IF(B522=\"\",\"\",IF(MOD(ROW(A518),1),\"\",COUNT(A$4:A521)+1))","v":""},null,null,null,null,null,null,null,null,null," ",null,0,null,null,0]
[{"$f":"IF(B523=\"\",\"\",IF(MOD(ROW(A519),1),\"\",COUNT(A$4:A522)+1))","v":""},null,null,null,null,null,null,null,null,null," ",null,0,null,null,0]
[{"$f":"IF(B524=\"\",\"\",IF(MOD(ROW(A520),1),\"\",COUNT(A$4:A523)+1))","v":""},null,null,null,null,null,null,null,null,null," ",null,0,null,null,0]
[{"$f":"IF(B525=\"\",\"\",IF(MOD(ROW(A521),1),\"\",COUNT(A$4:A524)+1))","v":""},null,null,null,null,null,null,null,null,null," ",null,0,null,null,0]
[{"$f":"IF(B526=\"\",\"\",IF(MOD(ROW(A522),1),\"\",COUNT(A$4:A525)+1))","v":""},null,null,null,null,null,null,null,null,null," ",null,0,null,null,0]
[{"$f":"IF(B527=\"\",\"\",IF(MOD(ROW(A523),1),\"\",COUNT(A$4:A526)+1))","v":""},null,null,null,null,null,null,null,null,null," ",null,0,null,null,0]
[{"$f":"IF(B528=\"\",\"\",IF(MOD(ROW(A524),1),\"\",COUNT(A$4:A527)+1))","v":""},null,null,null,null,null,null,null,null,null," ",null,0,null,null,0]
[{"$f":"IF(B529=\"\",\"\",IF(MOD(ROW(A525),1),\"\",COUNT(A$4:A528)+1))","v":""},null,null,null,null,null,null,null,null,null," ",null,0,null,null,0]
[{"$f":"IF(B530=\"\",\"\",IF(MOD(ROW(A526),1),\"\",COUNT(A$4:A529)+1))","v":""},null,null,null,null,null,null,null,null,null," ",null,0,null,null,0]
[{"$f":"IF(B531=\"\",\"\",IF(MOD(ROW(A527),1),\"\",COUNT(A$4:A530)+1))","v":""},null,null,null,null,null,null,null,null,null," ",null,0,null,null,0]
[{"$f":"IF(B532=\"\",\"\",IF(MOD(ROW(A528),1),\"\",COUNT(A$4:A531)+1))","v":""},null,null,null,null,null,null,null,null,null," ",null,0,null,null,0]
[{"$f":"IF(B533=\"\",\"\",IF(MOD(ROW(A529),1),\"\",COUNT(A$4:A532)+1))","v":""},null,null,null,null,null,null,null,null,null," ",null,0,null,null,0]
[{"$f":"IF(B534=\"\",\"\",IF(MOD(ROW(A530),1),\"\",COUNT(A$4:A533)+1))","v":""},null,null,null,null,null,null,null,null,null," ",null,0,null,null,0]
[{"$f":"IF(B535=\"\",\"\",IF(MOD(ROW(A531),1),\"\",COUNT(A$4:A534)+1))","v":""},null,null,null,null,null,null,null,null,null," ",null,0,null,null,0]
[{"$f":"IF(B536=\"\",\"\",IF(MOD(ROW(A532),1),\"\",COUNT(A$4:A535)+1))","v":""},null,null,null,null,null,null,null,null,null," ",null,0,null,null,0]
[{"$f":"IF(B537=\"\",\"\",IF(MOD(ROW(A533),1),\"\",COUNT(A$4:A536)+1))","v":""},null,null,null,null,null,null,null,null,null," ",null,0,null,null,0]
[{"$f":"IF(B538=\"\",\"\",IF(MOD(ROW(A534),1),\"\",COUNT(A$4:A537)+1))","v":""},null,null,null,null,null,null,null,null,null," ",null,0,null,null,0]
[{"$f":"IF(B539=\"\",\"\",IF(MOD(ROW(A535),1),\"\",COUNT(A$4:A538)+1))","v":""},null,null,null,null,null,null,null,null,null," ",null,0,null,null,0]
[{"$f":"IF(B540=\"\",\"\",IF(MOD(ROW(A536),1),\"\",COUNT(A$4:A539)+1))","v":""},null,null,null,null,null,null,null,null,null,{"$f":"IF(H540>0,(H540+I540)-(E540+F540),\" \")","v":" "},null,0,null,null,0]
[{"$f":"IF(B541=\"\",\"\",IF(MOD(ROW(A537),1),\"\",COUNT(A$4:A540)+1))","v":""},null,null,null,null,null,null,null,null,null," ",null,0,null,null,0]
[{"$f":"IF(B542=\"\",\"\",IF(MOD(ROW(A538),1),\"\",COUNT(A$4:A541)+1))","v":""},null,null,null,null,null,null,null,null,null," ",null,0,null,null,0]
[{"$f":"IF(B543=\"\",\"\",IF(MOD(ROW(A539),1),\"\",COUNT(A$4:A542)+1))","v":""},null,null,null,null,null,null,null,null,null," ",null,0,null,null,0]
[{"$f":"IF(B544=\"\",\"\",IF(MOD(ROW(A540),1),\"\",COUNT(A$4:A543)+1))","v":""},null,null,null,null,null,null,null,null,null," ",null,0,null,null,0]
[{"$f":"IF(B545=\"\",\"\",IF(MOD(ROW(A541),1),\"\",COUNT(A$4:A544)+1))","v":""},null,null,null,null,null,null,null,null,null," ",null,0,null,null,0]
[{"$f":"IF(B546=\"\",\"\",IF(MOD(ROW(A542),1),\"\",COUNT(A$4:A545)+1))","v":""},null,null,null,null,null,null,null,null,null," ",null,0,null,null,0]
[{"$f":"IF(B547=\"\",\"\",IF(MOD(ROW(A543),1),\"\",COUNT(A$4:A546)+1))","v":""},null,null,null,null,null,null,null,null,null," ",null,0,null,null,0]
[{"$f":"IF(B548=\"\",\"\",IF(MOD(ROW(A544),1),\"\",COUNT(A$4:A547)+1))","v":""},null,null,null,null,null,null,null,null,null," ",null,0,null,null,0]
[{"$f":"IF(B549=\"\",\"\",IF(MOD(ROW(A545),1),\"\",COUNT(A$4:A548)+1))","v":""},null,null,null,null,null,null,null,null,null," ",null,0,null,null,0]
[{"$f":"IF(B550=\"\",\"\",IF(MOD(ROW(A546),1),\"\",COUNT(A$4:A549)+1))","v":""},null,null,null,null,null,null,null,null,null," ",null,0,null,null,0]
[{"$f":"IF(B551=\"\",\"\",IF(MOD(ROW(A547),1),\"\",COUNT(A$4:A550)+1))","v":""},null,null,null,null,null,null,null,null,null," ",null,0,null,null,0]
[{"$f":"IF(B552=\"\",\"\",IF(MOD(ROW(A548),1),\"\",COUNT(A$4:A551)+1))","v":""},null,null,null,null,null,null,null,null,null," ",null,0,null,null,0]
[{"$f":"IF(B553=\"\",\"\",IF(MOD(ROW(A549),1),\"\",COUNT(A$4:A552)+1))","v":""},null,null,null,null,null,null,null,null,null," ",null,0,null,null,0]
[{"$f":"IF(B554=\"\",\"\",IF(MOD(ROW(A550),1),\"\",COUNT(A$4:A553)+1))","v":""},null,null,null,null,null,null,null,null,null," ",null,0,null,null,0]
[{"$f":"IF(B555=\"\",\"\",IF(MOD(ROW(A551),1),\"\",COUNT(A$4:A554)+1))","v":""},null,null,null,null,null,null,null,null,null," ",null,0,null,null,0]
[{"$f":"IF(B556=\"\",\"\",IF(MOD(ROW(A552),1),\"\",COUNT(A$4:A555)+1))","v":""},null,null,null,null,null,null,null,null,null," ",null,0,null,null,0]
[{"$f":"IF(B557=\"\",\"\",IF(MOD(ROW(A553),1),\"\",COUNT(A$4:A556)+1))","v":""},null,null,null,null,null,null,null,null,null," ",null,0,null,null,0]
[{"$f":"IF(B558=\"\",\"\",IF(MOD(ROW(A554),1),\"\",COUNT(A$4:A557)+1))","v":""},null,null,null,null,null,null,null,null,null," ",null,0,null,null,0]
[{"$f":"IF(B559=\"\",\"\",IF(MOD(ROW(A555),1),\"\",COUNT(A$4:A558)+1))","v":""},null,null,null,null,null,null,null,null,null," ",null,0,null,null,0]
[{"$f":"IF(B560=\"\",\"\",IF(MOD(ROW(A556),1),\"\",COUNT(A$4:A559)+1))","v":""},null,null,null,null,null,null,null,null,null," ",null,0,null,null,0]
[{"$f":"IF(B561=\"\",\"\",IF(MOD(ROW(A557),1),\"\",COUNT(A$4:A560)+1))","v":""},null,null,null,null,null,null,null,null,null," ",null,0,null,null,0]
[{"$f":"IF(B562=\"\",\"\",IF(MOD(ROW(A558),1),\"\",COUNT(A$4:A561)+1))","v":""},null,null,null,null,null,null,null,null,null," ",null,0,null,null,0]
[{"$f":"IF(B563=\"\",\"\",IF(MOD(ROW(A559),1),\"\",COUNT(A$4:A562)+1))","v":""},null,null,null,null,null,null,null,null,null," ",null,0,null,null,0]
[{"$f":"IF(B564=\"\",\"\",IF(MOD(ROW(A560),1),\"\",COUNT(A$4:A563)+1))","v":""},null,null,null,null,null,null,null,null,null," ",null,0,null,null,0]
[{"$f":"IF(B565=\"\",\"\",IF(MOD(ROW(A561),1),\"\",COUNT(A$4:A564)+1))","v":""},null,null,null,null,null,null,null,null,null," ",null,0,null,null,0]
[{"$f":"IF(B566=\"\",\"\",IF(MOD(ROW(A562),1),\"\",COUNT(A$4:A565)+1))","v":""},null,null,null,null,null,null,null,null,null," ",null,0,null,null,0]
[{"$f":"IF(B567=\"\",\"\",IF(MOD(ROW(A563),1),\"\",COUNT(A$4:A566)+1))","v":""},null,null,null,null,null,null,null,null,null," ",null,{"$f":"IF(J567>0,J567-G567,0)","v":0},null,null,{"$f":"IF(L567>0,L567,0)","v":0}]
[{"$f":"IF(B568=\"\",\"\",IF(MOD(ROW(A564),1),\"\",COUNT(A$4:A567)+1))","v":""},null,null,null,null,null,null,null,null,null," ",null,0,null,null,0]
[{"$f":"IF(B569=\"\",\"\",IF(MOD(ROW(A565),1),\"\",COUNT(A$4:A568)+1))","v":""},null,null,null,null,null,null,null,null,null," ",null,0,null,null,0]
[{"$f":"IF(B570=\"\",\"\",IF(MOD(ROW(A566),1),\"\",COUNT(A$4:A569)+1))","v":""},null,null,null,null,null,null,null,null,null," ",null,0,null,null,0]
[{"$f":"IF(B571=\"\",\"\",IF(MOD(ROW(A567),1),\"\",COUNT(A$4:A570)+1))","v":""},null,null,null,null,null,null,null,null,null," ",null,0,null,null,0]
[{"$f":"IF(B572=\"\",\"\",IF(MOD(ROW(A568),1),\"\",COUNT(A$4:A571)+1))","v":""},null,null,null,null,null,null,null,null,null," ",null,0,null,null,0]
[{"$f":"IF(B573=\"\",\"\",IF(MOD(ROW(A569),1),\"\",COUNT(A$4:A572)+1))","v":""},null,null,null,null,null,null,null,null,null," ",null,0,null,null,0]
[{"$f":"IF(B574=\"\",\"\",IF(MOD(ROW(A570),1),\"\",COUNT(A$4:A573)+1))","v":""},null,null,null,null,null,null,null,null,null," ",null,0,null,null,0]
[{"$f":"IF(B575=\"\",\"\",IF(MOD(ROW(A571),1),\"\",COUNT(A$4:A574)+1))","v":""},null,null,null,null,null,null,null,null,null," ",null,0,null,null,0]
[{"$f":"IF(B576=\"\",\"\",IF(MOD(ROW(A572),1),\"\",COUNT(A$4:A575)+1))","v":""},null,null,null,null,null,null,null,null,null," ",null,0,null,null,0]
[{"$f":"IF(B577=\"\",\"\",IF(MOD(ROW(A573),1),\"\",COUNT(A$4:A576)+1))","v":""},null,null,null,null,null,null,null,null,null," ",null,0,null,null,0]
[{"$f":"IF(B578=\"\",\"\",IF(MOD(ROW(A574),1),\"\",COUNT(A$4:A577)+1))","v":""},null,null,null,null,null,null,null,null,null," ",null,0,null,null,0]
[{"$f":"IF(B579=\"\",\"\",IF(MOD(ROW(A575),1),\"\",COUNT(A$4:A578)+1))","v":""},null,null,null,null,null,null,null,null,null," ",null,0,null,null,0]
[{"$f":"IF(B580=\"\",\"\",IF(MOD(ROW(A576),1),\"\",COUNT(A$4:A579)+1))","v":""},null,null,null,null,null,null,null,null,null," ",null,0,null,null,0]
[{"$f":"IF(B581=\"\",\"\",IF(MOD(ROW(A577),1),\"\",COUNT(A$4:A580)+1))","v":""},null,null,null,null,null,null,null,null,null," ",null,0,null,null,0]
[{"$f":"IF(B582=\"\",\"\",IF(MOD(ROW(A578),1),\"\",COUNT(A$4:A581)+1))","v":""},null,null,null,null,null,null,null,null,null," ",null,0,null,null,0]
[{"$f":"IF(B583=\"\",\"\",IF(MOD(ROW(A579),1),\"\",COUNT(A$4:A582)+1))","v":""},null,null,null,null,null,null,null,null,null," ",null,0,null,null,0]
[{"$f":"IF(B584=\"\",\"\",IF(MOD(ROW(A580),1),\"\",COUNT(A$4:A583)+1))","v":""},null,null,null,null,null,null,null,null,null," ",null,0,null,null,0]
[{"$f":"IF(B585=\"\",\"\",IF(MOD(ROW(A581),1),\"\",COUNT(A$4:A584)+1))","v":""},null,null,null,null,null,null,null,null,null," ",null,0,null,null,0]
[{"$f":"IF(B586=\"\",\"\",IF(MOD(ROW(A582),1),\"\",COUNT(A$4:A585)+1))","v":""},null,null,null,null,null,null,null,null,null," ",null,0,null,null,0]
[{"$f":"IF(B587=\"\",\"\",IF(MOD(ROW(A583),1),\"\",COUNT(A$4:A586)+1))","v":""},null,null,null,null,null,null,null,null,null," ",null,0,null,null,0]
[{"$f":"IF(B588=\"\",\"\",IF(MOD(ROW(A584),1),\"\",COUNT(A$4:A587)+1))","v":""},null,null,null,null,null,null,null,null,null," ",null,0,null,null,0]
[{"$f":"IF(B589=\"\",\"\",IF(MOD(ROW(A585),1),\"\",COUNT(A$4:A588)+1))","v":""},null,null,null,null,null,null,null,null,null," ",null,0,null,null,0]
[{"$f":"IF(B590=\"\",\"\",IF(MOD(ROW(A586),1),\"\",COUNT(A$4:A589)+1))","v":""},null,null,null,null,null,null,null,null,null," ",null,0,null,null,0]
[{"$f":"IF(B591=\"\",\"\",IF(MOD(ROW(A587),1),\"\",COUNT(A$4:A590)+1))","v":""},null,null,null,null,null,null,null,null,null," ",null,0,null,null,0]
[{"$f":"IF(B592=\"\",\"\",IF(MOD(ROW(A588),1),\"\",COUNT(A$4:A591)+1))","v":""},null,null,null,null,null,null,null,null,null," ",null,0,null,null,0]
[{"$f":"IF(B593=\"\",\"\",IF(MOD(ROW(A589),1),\"\",COUNT(A$4:A592)+1))","v":""},null,null,null,null,null,null,null,null,null," ",null,0,null,null,0]
[{"$f":"IF(B594=\"\",\"\",IF(MOD(ROW(A590),1),\"\",COUNT(A$4:A593)+1))","v":""},null,null,null,null,null,null,null,null,null," ",null,0,null,null,0]
[{"$f":"IF(B595=\"\",\"\",IF(MOD(ROW(A591),1),\"\",COUNT(A$4:A594)+1))","v":""},null,null,null,null,null,null,null,null,null," ",null,0,null,null,0]
[{"$f":"IF(B596=\"\",\"\",IF(MOD(ROW(A592),1),\"\",COUNT(A$4:A595)+1))","v":""},null,null,null,null,null,null,null,null,null," ",null,0,null,null,0]
[{"$f":"IF(B597=\"\",\"\",IF(MOD(ROW(A593),1),\"\",COUNT(A$4:A596)+1))","v":""},null,null,null,null,null,null,null,null,null," ",null,0,null,null,0]
[{"$f":"IF(B598=\"\",\"\",IF(MOD(ROW(A594),1),\"\",COUNT(A$4:A597)+1))","v":""},null,null,null,null,null,null,null,null,null," ",null,0,null,null,0]
[{"$f":"IF(B599=\"\",\"\",IF(MOD(ROW(A595),1),\"\",COUNT(A$4:A598)+1))","v":""},null,null,null,null,null,null,null,null,null," ",null,0,null,null,0]
[{"$f":"IF(B600=\"\",\"\",IF(MOD(ROW(A596),1),\"\",COUNT(A$4:A599)+1))","v":""},null,null,null,null,null,null,null,null,null," ",null,0,null,null,0]
[{"$f":"IF(B601=\"\",\"\",IF(MOD(ROW(A597),1),\"\",COUNT(A$4:A600)+1))","v":""},null,null,null,null,null,null,null,null,null," ",null,0,null,null,0]
[{"$f":"IF(B602=\"\",\"\",IF(MOD(ROW(A598),1),\"\",COUNT(A$4:A601)+1))","v":""},null,null,null,null,null,null,null,null,null," ",null,0,null,null,0]
[{"$f":"IF(B603=\"\",\"\",IF(MOD(ROW(A599),1),\"\",COUNT(A$4:A602)+1))","v":""},null,null,null,null,null,null,null,null,null," ",null,0,null,null,0]
[{"$f":"IF(B604=\"\",\"\",IF(MOD(ROW(A600),1),\"\",COUNT(A$4:A603)+1))","v":""},null,null,null,null,null,null,null,null,null,{"$f":"IF(H604>0,(H604+I604)-(E604+F604),\" \")","v":" "},null,0,null,null,0]
[{"$f":"IF(B605=\"\",\"\",IF(MOD(ROW(A601),1),\"\",COUNT(A$4:A604)+1))","v":""},null,null,null,null,null,null,null,null,null," ",null,0,null,null,0]
[{"$f":"IF(B606=\"\",\"\",IF(MOD(ROW(A602),1),\"\",COUNT(A$4:A605)+1))","v":""},null,null,null,null,null,null,null,null,null," ",null,0,null,null,0]
[{"$f":"IF(B607=\"\",\"\",IF(MOD(ROW(A603),1),\"\",COUNT(A$4:A606)+1))","v":""},null,null,null,null,null,null,null,null,null," ",null,0,null,null,0]
[{"$f":"IF(B608=\"\",\"\",IF(MOD(ROW(A604),1),\"\",COUNT(A$4:A607)+1))","v":""},null,null,null,null,null,null,null,null,null," ",null,0,null,null,0]
[{"$f":"IF(B609=\"\",\"\",IF(MOD(ROW(A605),1),\"\",COUNT(A$4:A608)+1))","v":""},null,null,null,null,null,null,null,null,null," ",null,0,null,null,0]
[{"$f":"IF(B610=\"\",\"\",IF(MOD(ROW(A606),1),\"\",COUNT(A$4:A609)+1))","v":""},null,null,null,null,null,null,null,null,null," ",null,0,null,null,0]